Workbook

Sheet Chart
A1: Lunar Cycle Jitter: Meyer Goddess Calendar
A2: ="Each lunar cycle contains "&MPC&" months ("&FMPC&" full, "&DMPC&" deficient) = "&DPC&" days = "&reducefraction(DPC,7,FALSE,FALSE,TRUE)&" weeks = 34 lunar years." -> Each lunar cycle contains 850 months (451 full, 399 deficient) = 25101 days = 3585+6/7 weeks = 34 lunar years.
A3: Lunar years have 25 lunar months. Even-numbered months have 29 days, odd-numbered months have 30 days,
A4: except that an extra day is added to year numbers divisible by 4 or 51.
A5: ="Each calendar cycle contains 6 lunar cycles = 6 x "&MPC&" = "&6*MPC&" months / 25 = "&6*MPC/25&" lunar years." -> Each calendar cycle contains 6 lunar cycles = 6 x 850 = 5100 months / 25 = 204 lunar years.
A6: Common year FDFDFDFDFDFDFDFDFDFDFDFDF=738 days, leap FDFDFDFDFDFDFDFDFDFDFDFFF=739 days.
A7: ="Mean month = "&"29+"&reducefraction(FMPC,MPC,FALSE,FALSE,TRUE)&" days = 29d 12h 44m "&reducefraction(240*(360*FMPC-191*MPC),MPC,FALSE,FALSE,TRUE)&" seconds or about 29"&MID(FMPC/MPC,2,20)&" days = 29d 12h 44m "&ROUND(240*(360*FMPC-191*MPC)/MPC,6)&" seconds." -> Mean month = 29+451/850 days = 29d 12h 44m 2+14/17 seconds or about 29.530588235294118 days = 29d 12h 44m 2.823529 seconds.
A8: ="Duration per ''Part'' = 1/"&MPC&" day = "&reducefraction(24,MPC,FALSE,FALSE,TRUE)&" hour = "&reducefraction(1440,MPC,FALSE,FALSE,TRUE)&" minutes = "&reducefraction(86400,MPC,FALSE,FALSE,TRUE)&" seconds; one hour = "&reducefraction(MPC,24,FALSE,FALSE,TRUE)&" parts." -> Duration per ''Part'' = 1/850 day = 12/425 hour = 1+59/85 minutes = 101+11/17 seconds; one hour = 35+5/12 parts.
Q13: FALSE
Q22: 25
Q23: Selected
Q24: Month
Q25: in Year
Q26: (1 to 25)
Q34: 2
Q35: Selected
Q36: Month 2
Q37: in Year
Q38: (1 to 25)

Sheet Data
A1: Lunar Cycle Jitter Evaluator
A2: by Dr. Irv Bromberg, University of Toronto, Canada
A3: http://individual.utoronto.ca/intervalmath/jitter/index.html | D3: Jitter | E3: (parts)
D4: =MAX(H:H) -> 1797 | E4: maximum | F4: =reducefraction(JitterMax*MPC,MPC,FALSE,FALSE,FALSE) -> 1797
A5: Months per Cycle (Parts per Day): | B5: 850 | C5: months (parts) | D5: =MIN(H:H) -> -999 | E5: minimum | F5: =reducefraction(JitterMin*MPC,MPC,FALSE,FALSE,FALSE) -> –(999)
A6: 30-day Months per Cycle: | B6: 451 | C6: months | D6: =D4-D5 -> 2796 | E6: range | F6: =reducefraction(JitterRange*MPC,MPC,FALSE,FALSE,FALSE) -> 2796
A7: 29-day Months per Cycle: | B7: =MPC-FMPC -> 399 | C7: months | D7: ="Jitter range = "&F6&" parts = "&reducefraction(F6*24,MPC,FALSE,FALSE,FALSE)&" hours" -> Jitter range = 2796 parts = 78 + 402 / 425 hours
A8: Days per Cycle (Parts per Month): | B8: =29*MPC+FMPC -> 25101 | C8: days (parts)
D9: Limits for Chart:
A10: Mean Month: | B10: ="29 + "&reducefraction(FMPC,MPC,FALSE,FALSE,FALSE) -> 29 + 451 / 850 | C10: days | D10: x | E10: y | F10: Hours
A11: Mean Month >29d: | B11: =FMPC/MPC -> 0.530588235294118 | C11: days | D11: =A21 -> 1 | E11: =JitterMax -> 1797 | F11: =E11*24/MPC -> 50.73882353
A12: Mean Month >29d 12h 44m: | B12: =reducefraction(240*(360*FMPC-191*MPC),MPC,FALSE,FALSE,TRUE) -> 2+14/17 | C12: seconds | D12: =D11+MPC*12 -> 10201 | E12: =E11 -> 1797 | F12: =E12*24/MPC -> 50.73882353
A13: … or approximately: | B13: =240*(360*FMPC-191*MPC)/MPC -> 2.823529412 | C13: seconds
D14: =D11 -> 1 | E14: 0
D15: =D12 -> 10201 | E15: 0
D17: =A21 -> 1 | E17: =JitterMin -> -999 | F17: =E17*24/MPC -> -28.20705882
A18: Duration per Part: | B18: =reducefraction(1440,MPC,FALSE,FALSE,FALSE) -> 1 + 59 / 85 | C18: minutes | D18: =D12 -> 10201 | E18: =E17 -> -999 | F18: =E18*24/MPC -> -28.20705882
A20: Month in Cycle | B20: Lunar Year | C20: Month in Year | D20: Leap Month? | E20: Month Length | F20: New Month Moment | G20: Elapsed | H20: Difference
A21: 1 | B21: 1 | C21: 1 | D21: =AND(OR(MOD(B21,4)=0,MOD(B21,51)=0),C21=24) -> FALSE | E21: =IF(MOD(C21,2)=1,30,29)+IF(D21,1,0) -> 30 | F21: 0 | G21: 0 | H21: =F21-G21 -> 0
A22: =A21+1 -> 2 | B22: =IF(C22=1,B21+1,B21) -> 1 | C22: =IF(C21=25,1,C21+1) -> 2 | D22: =AND(OR(MOD(B22,4)=0,MOD(B22,51)=0),C22=24) -> FALSE | E22: =IF(MOD(C22,2)=1,30,29)+IF(D22,1,0) -> 29 | F22: =F21+PPM -> 25101 | G22: =G21+E21*PPD -> 25500 | H22: =F22-G22 -> -399
A23: =A22+1 -> 3 | B23: =IF(C23=1,B22+1,B22) -> 1 | C23: =IF(C22=25,1,C22+1) -> 3 | D23: =AND(OR(MOD(B23,4)=0,MOD(B23,51)=0),C23=24) -> FALSE | E23: =IF(MOD(C23,2)=1,30,29)+IF(D23,1,0) -> 30 | F23: 50202 | G23: 50150 | H23: =F23-G23 -> 52
A24: 4 | B24: 1 | C24: 4 | D24: FALSE | E24: 29 | F24: 75303 | G24: 75650 | H24: -347
A25: 5 | B25: 1 | C25: 5 | D25: FALSE | E25: 30 | F25: 100404 | G25: 100300 | H25: 104
A26: 6 | B26: 1 | C26: 6 | D26: FALSE | E26: 29 | F26: 125505 | G26: 125800 | H26: -295
A27: 7 | B27: 1 | C27: 7 | D27: FALSE | E27: 30 | F27: 150606 | G27: 150450 | H27: 156
A28: 8 | B28: 1 | C28: 8 | D28: FALSE | E28: 29 | F28: 175707 | G28: 175950 | H28: -243
A29: 9 | B29: 1 | C29: 9 | D29: FALSE | E29: 30 | F29: 200808 | G29: 200600 | H29: 208
A30: 10 | B30: 1 | C30: 10 | D30: FALSE | E30: 29 | F30: 225909 | G30: 226100 | H30: -191
A31: 11 | B31: 1 | C31: 11 | D31: FALSE | E31: 30 | F31: 251010 | G31: 250750 | H31: 260
A32: 12 | B32: 1 | C32: 12 | D32: FALSE | E32: 29 | F32: 276111 | G32: 276250 | H32: -139
A33: 13 | B33: 1 | C33: 13 | D33: FALSE | E33: 30 | F33: 301212 | G33: 300900 | H33: 312
A34: 14 | B34: 1 | C34: 14 | D34: FALSE | E34: 29 | F34: 326313 | G34: 326400 | H34: -87
A35: 15 | B35: 1 | C35: 15 | D35: FALSE | E35: 30 | F35: 351414 | G35: 351050 | H35: 364
A36: 16 | B36: 1 | C36: 16 | D36: FALSE | E36: 29 | F36: 376515 | G36: 376550 | H36: -35
A37: 17 | B37: 1 | C37: 17 | D37: FALSE | E37: 30 | F37: 401616 | G37: 401200 | H37: 416
A38: 18 | B38: 1 | C38: 18 | D38: FALSE | E38: 29 | F38: 426717 | G38: 426700 | H38: 17
A39: 19 | B39: 1 | C39: 19 | D39: FALSE | E39: 30 | F39: 451818 | G39: 451350 | H39: 468
A40: 20 | B40: 1 | C40: 20 | D40: FALSE | E40: 29 | F40: 476919 | G40: 476850 | H40: 69
A41: 21 | B41: 1 | C41: 21 | D41: FALSE | E41: 30 | F41: 502020 | G41: 501500 | H41: 520
A42: 22 | B42: 1 | C42: 22 | D42: FALSE | E42: 29 | F42: 527121 | G42: 527000 | H42: 121
A43: 23 | B43: 1 | C43: 23 | D43: FALSE | E43: 30 | F43: 552222 | G43: 551650 | H43: 572
A44: 24 | B44: 1 | C44: 24 | D44: FALSE | E44: 29 | F44: 577323 | G44: 577150 | H44: 173
A45: 25 | B45: 1 | C45: 25 | D45: FALSE | E45: 30 | F45: 602424 | G45: 601800 | H45: 624
A46: 26 | B46: 2 | C46: 1 | D46: FALSE | E46: 30 | F46: 627525 | G46: 627300 | H46: 225
A47: 27 | B47: 2 | C47: 2 | D47: FALSE | E47: 29 | F47: 652626 | G47: 652800 | H47: -174
A48: 28 | B48: 2 | C48: 3 | D48: FALSE | E48: 30 | F48: 677727 | G48: 677450 | H48: 277
A49: 29 | B49: 2 | C49: 4 | D49: FALSE | E49: 29 | F49: 702828 | G49: 702950 | H49: -122
A50: 30 | B50: 2 | C50: 5 | D50: FALSE | E50: 30 | F50: 727929 | G50: 727600 | H50: 329
A51: 31 | B51: 2 | C51: 6 | D51: FALSE | E51: 29 | F51: 753030 | G51: 753100 | H51: -70
A52: 32 | B52: 2 | C52: 7 | D52: FALSE | E52: 30 | F52: 778131 | G52: 777750 | H52: 381
A53: 33 | B53: 2 | C53: 8 | D53: FALSE | E53: 29 | F53: 803232 | G53: 803250 | H53: -18
A54: 34 | B54: 2 | C54: 9 | D54: FALSE | E54: 30 | F54: 828333 | G54: 827900 | H54: 433
A55: 35 | B55: 2 | C55: 10 | D55: FALSE | E55: 29 | F55: 853434 | G55: 853400 | H55: 34
A56: 36 | B56: 2 | C56: 11 | D56: FALSE | E56: 30 | F56: 878535 | G56: 878050 | H56: 485
A57: 37 | B57: 2 | C57: 12 | D57: FALSE | E57: 29 | F57: 903636 | G57: 903550 | H57: 86
A58: 38 | B58: 2 | C58: 13 | D58: FALSE | E58: 30 | F58: 928737 | G58: 928200 | H58: 537
A59: 39 | B59: 2 | C59: 14 | D59: FALSE | E59: 29 | F59: 953838 | G59: 953700 | H59: 138
A60: 40 | B60: 2 | C60: 15 | D60: FALSE | E60: 30 | F60: 978939 | G60: 978350 | H60: 589
A61: 41 | B61: 2 | C61: 16 | D61: FALSE | E61: 29 | F61: 1004040 | G61: 1003850 | H61: 190
A62: 42 | B62: 2 | C62: 17 | D62: FALSE | E62: 30 | F62: 1029141 | G62: 1028500 | H62: 641
A63: 43 | B63: 2 | C63: 18 | D63: FALSE | E63: 29 | F63: 1054242 | G63: 1054000 | H63: 242
A64: 44 | B64: 2 | C64: 19 | D64: FALSE | E64: 30 | F64: 1079343 | G64: 1078650 | H64: 693
A65: 45 | B65: 2 | C65: 20 | D65: FALSE | E65: 29 | F65: 1104444 | G65: 1104150 | H65: 294
A66: 46 | B66: 2 | C66: 21 | D66: FALSE | E66: 30 | F66: 1129545 | G66: 1128800 | H66: 745
A67: 47 | B67: 2 | C67: 22 | D67: FALSE | E67: 29 | F67: 1154646 | G67: 1154300 | H67: 346
A68: 48 | B68: 2 | C68: 23 | D68: FALSE | E68: 30 | F68: 1179747 | G68: 1178950 | H68: 797
A69: 49 | B69: 2 | C69: 24 | D69: FALSE | E69: 29 | F69: 1204848 | G69: 1204450 | H69: 398
A70: 50 | B70: 2 | C70: 25 | D70: FALSE | E70: 30 | F70: 1229949 | G70: 1229100 | H70: 849
A71: 51 | B71: 3 | C71: 1 | D71: FALSE | E71: 30 | F71: 1255050 | G71: 1254600 | H71: 450
A72: 52 | B72: 3 | C72: 2 | D72: FALSE | E72: 29 | F72: 1280151 | G72: 1280100 | H72: 51
A73: 53 | B73: 3 | C73: 3 | D73: FALSE | E73: 30 | F73: 1305252 | G73: 1304750 | H73: 502
A74: 54 | B74: 3 | C74: 4 | D74: FALSE | E74: 29 | F74: 1330353 | G74: 1330250 | H74: 103
A75: 55 | B75: 3 | C75: 5 | D75: FALSE | E75: 30 | F75: 1355454 | G75: 1354900 | H75: 554
A76: 56 | B76: 3 | C76: 6 | D76: FALSE | E76: 29 | F76: 1380555 | G76: 1380400 | H76: 155
A77: 57 | B77: 3 | C77: 7 | D77: FALSE | E77: 30 | F77: 1405656 | G77: 1405050 | H77: 606
A78: 58 | B78: 3 | C78: 8 | D78: FALSE | E78: 29 | F78: 1430757 | G78: 1430550 | H78: 207
A79: 59 | B79: 3 | C79: 9 | D79: FALSE | E79: 30 | F79: 1455858 | G79: 1455200 | H79: 658
A80: 60 | B80: 3 | C80: 10 | D80: FALSE | E80: 29 | F80: 1480959 | G80: 1480700 | H80: 259
A81: 61 | B81: 3 | C81: 11 | D81: FALSE | E81: 30 | F81: 1506060 | G81: 1505350 | H81: 710
A82: 62 | B82: 3 | C82: 12 | D82: FALSE | E82: 29 | F82: 1531161 | G82: 1530850 | H82: 311
A83: 63 | B83: 3 | C83: 13 | D83: FALSE | E83: 30 | F83: 1556262 | G83: 1555500 | H83: 762
A84: 64 | B84: 3 | C84: 14 | D84: FALSE | E84: 29 | F84: 1581363 | G84: 1581000 | H84: 363
A85: 65 | B85: 3 | C85: 15 | D85: FALSE | E85: 30 | F85: 1606464 | G85: 1605650 | H85: 814
A86: 66 | B86: 3 | C86: 16 | D86: FALSE | E86: 29 | F86: =F85+PPM -> 1631565 | G86: =G85+E85*PPD -> 1631150 | H86: 415
A87: =A86+1 -> 67 | B87: =IF(C87=1,B86+1,B86) -> 3 | C87: =IF(C86=25,1,C86+1) -> 17 | D87: =AND(OR(MOD(B87,4)=0,MOD(B87,51)=0),C87=24) -> FALSE | E87: =IF(MOD(C87,2)=1,30,29)+IF(D87,1,0) -> 30 | F87: 1656666 | G87: 1655800 | H87: =F87-G87 -> 866
A88: 68 | B88: 3 | C88: 18 | D88: FALSE | E88: 29 | F88: 1681767 | G88: 1681300 | H88: 467
A89: 69 | B89: 3 | C89: 19 | D89: FALSE | E89: 30 | F89: 1706868 | G89: 1705950 | H89: 918
A90: 70 | B90: 3 | C90: 20 | D90: FALSE | E90: 29 | F90: 1731969 | G90: 1731450 | H90: 519
A91: 71 | B91: 3 | C91: 21 | D91: FALSE | E91: 30 | F91: 1757070 | G91: 1756100 | H91: 970
A92: 72 | B92: 3 | C92: 22 | D92: FALSE | E92: 29 | F92: 1782171 | G92: 1781600 | H92: 571
A93: 73 | B93: 3 | C93: 23 | D93: FALSE | E93: 30 | F93: 1807272 | G93: 1806250 | H93: 1022
A94: 74 | B94: 3 | C94: 24 | D94: FALSE | E94: 29 | F94: 1832373 | G94: 1831750 | H94: 623
A95: 75 | B95: 3 | C95: 25 | D95: FALSE | E95: 30 | F95: 1857474 | G95: 1856400 | H95: 1074
A96: 76 | B96: 4 | C96: 1 | D96: FALSE | E96: 30 | F96: 1882575 | G96: 1881900 | H96: 675
A97: 77 | B97: 4 | C97: 2 | D97: FALSE | E97: 29 | F97: 1907676 | G97: 1907400 | H97: 276
A98: 78 | B98: 4 | C98: 3 | D98: FALSE | E98: 30 | F98: 1932777 | G98: 1932050 | H98: 727
A99: 79 | B99: 4 | C99: 4 | D99: FALSE | E99: 29 | F99: 1957878 | G99: 1957550 | H99: 328
A100: 80 | B100: 4 | C100: 5 | D100: FALSE | E100: 30 | F100: 1982979 | G100: 1982200 | H100: 779
A101: 81 | B101: 4 | C101: 6 | D101: FALSE | E101: 29 | F101: 2008080 | G101: 2007700 | H101: 380
A102: 82 | B102: 4 | C102: 7 | D102: FALSE | E102: 30 | F102: 2033181 | G102: 2032350 | H102: 831
A103: 83 | B103: 4 | C103: 8 | D103: FALSE | E103: 29 | F103: 2058282 | G103: 2057850 | H103: 432
A104: 84 | B104: 4 | C104: 9 | D104: FALSE | E104: 30 | F104: 2083383 | G104: 2082500 | H104: 883
A105: 85 | B105: 4 | C105: 10 | D105: FALSE | E105: 29 | F105: 2108484 | G105: 2108000 | H105: 484
A106: 86 | B106: 4 | C106: 11 | D106: FALSE | E106: 30 | F106: 2133585 | G106: 2132650 | H106: 935
A107: 87 | B107: 4 | C107: 12 | D107: FALSE | E107: 29 | F107: 2158686 | G107: 2158150 | H107: 536
A108: 88 | B108: 4 | C108: 13 | D108: FALSE | E108: 30 | F108: 2183787 | G108: 2182800 | H108: 987
A109: 89 | B109: 4 | C109: 14 | D109: FALSE | E109: 29 | F109: 2208888 | G109: 2208300 | H109: 588
A110: 90 | B110: 4 | C110: 15 | D110: FALSE | E110: 30 | F110: 2233989 | G110: 2232950 | H110: 1039
A111: 91 | B111: 4 | C111: 16 | D111: FALSE | E111: 29 | F111: 2259090 | G111: 2258450 | H111: 640
A112: 92 | B112: 4 | C112: 17 | D112: FALSE | E112: 30 | F112: 2284191 | G112: 2283100 | H112: 1091
A113: 93 | B113: 4 | C113: 18 | D113: FALSE | E113: 29 | F113: 2309292 | G113: 2308600 | H113: 692
A114: 94 | B114: 4 | C114: 19 | D114: FALSE | E114: 30 | F114: 2334393 | G114: 2333250 | H114: 1143
A115: 95 | B115: 4 | C115: 20 | D115: FALSE | E115: 29 | F115: 2359494 | G115: 2358750 | H115: 744
A116: 96 | B116: 4 | C116: 21 | D116: FALSE | E116: 30 | F116: 2384595 | G116: 2383400 | H116: 1195
A117: 97 | B117: 4 | C117: 22 | D117: FALSE | E117: 29 | F117: 2409696 | G117: 2408900 | H117: 796
A118: 98 | B118: 4 | C118: 23 | D118: FALSE | E118: 30 | F118: 2434797 | G118: 2433550 | H118: 1247
A119: 99 | B119: 4 | C119: 24 | D119: TRUE | E119: 30 | F119: 2459898 | G119: 2459050 | H119: 848
A120: 100 | B120: 4 | C120: 25 | D120: FALSE | E120: 30 | F120: 2484999 | G120: 2484550 | H120: 449
A121: 101 | B121: 5 | C121: 1 | D121: FALSE | E121: 30 | F121: 2510100 | G121: 2510050 | H121: 50
A122: 102 | B122: 5 | C122: 2 | D122: FALSE | E122: 29 | F122: 2535201 | G122: 2535550 | H122: -349
A123: 103 | B123: 5 | C123: 3 | D123: FALSE | E123: 30 | F123: 2560302 | G123: 2560200 | H123: 102
A124: 104 | B124: 5 | C124: 4 | D124: FALSE | E124: 29 | F124: 2585403 | G124: 2585700 | H124: -297
A125: 105 | B125: 5 | C125: 5 | D125: FALSE | E125: 30 | F125: 2610504 | G125: 2610350 | H125: 154
A126: 106 | B126: 5 | C126: 6 | D126: FALSE | E126: 29 | F126: 2635605 | G126: 2635850 | H126: -245
A127: 107 | B127: 5 | C127: 7 | D127: FALSE | E127: 30 | F127: 2660706 | G127: 2660500 | H127: 206
A128: 108 | B128: 5 | C128: 8 | D128: FALSE | E128: 29 | F128: 2685807 | G128: 2686000 | H128: -193
A129: 109 | B129: 5 | C129: 9 | D129: FALSE | E129: 30 | F129: 2710908 | G129: 2710650 | H129: 258
A130: 110 | B130: 5 | C130: 10 | D130: FALSE | E130: 29 | F130: 2736009 | G130: 2736150 | H130: -141
A131: 111 | B131: 5 | C131: 11 | D131: FALSE | E131: 30 | F131: 2761110 | G131: 2760800 | H131: 310
A132: 112 | B132: 5 | C132: 12 | D132: FALSE | E132: 29 | F132: 2786211 | G132: 2786300 | H132: -89
A133: 113 | B133: 5 | C133: 13 | D133: FALSE | E133: 30 | F133: 2811312 | G133: 2810950 | H133: 362
A134: 114 | B134: 5 | C134: 14 | D134: FALSE | E134: 29 | F134: 2836413 | G134: 2836450 | H134: -37
A135: 115 | B135: 5 | C135: 15 | D135: FALSE | E135: 30 | F135: 2861514 | G135: 2861100 | H135: 414
A136: 116 | B136: 5 | C136: 16 | D136: FALSE | E136: 29 | F136: 2886615 | G136: 2886600 | H136: 15
A137: 117 | B137: 5 | C137: 17 | D137: FALSE | E137: 30 | F137: 2911716 | G137: 2911250 | H137: 466
A138: 118 | B138: 5 | C138: 18 | D138: FALSE | E138: 29 | F138: 2936817 | G138: 2936750 | H138: 67
A139: 119 | B139: 5 | C139: 19 | D139: FALSE | E139: 30 | F139: 2961918 | G139: 2961400 | H139: 518
A140: 120 | B140: 5 | C140: 20 | D140: FALSE | E140: 29 | F140: 2987019 | G140: 2986900 | H140: 119
A141: 121 | B141: 5 | C141: 21 | D141: FALSE | E141: 30 | F141: 3012120 | G141: 3011550 | H141: 570
A142: 122 | B142: 5 | C142: 22 | D142: FALSE | E142: 29 | F142: 3037221 | G142: 3037050 | H142: 171
A143: 123 | B143: 5 | C143: 23 | D143: FALSE | E143: 30 | F143: 3062322 | G143: 3061700 | H143: 622
A144: 124 | B144: 5 | C144: 24 | D144: FALSE | E144: 29 | F144: 3087423 | G144: 3087200 | H144: 223
A145: 125 | B145: 5 | C145: 25 | D145: FALSE | E145: 30 | F145: 3112524 | G145: 3111850 | H145: 674
A146: 126 | B146: 6 | C146: 1 | D146: FALSE | E146: 30 | F146: 3137625 | G146: 3137350 | H146: 275
A147: 127 | B147: 6 | C147: 2 | D147: FALSE | E147: 29 | F147: 3162726 | G147: 3162850 | H147: -124
A148: 128 | B148: 6 | C148: 3 | D148: FALSE | E148: 30 | F148: 3187827 | G148: 3187500 | H148: 327
A149: 129 | B149: 6 | C149: 4 | D149: FALSE | E149: 29 | F149: 3212928 | G149: 3213000 | H149: -72
A150: 130 | B150: 6 | C150: 5 | D150: FALSE | E150: 30 | F150: =F149+PPM -> 3238029 | G150: =G149+E149*PPD -> 3237650 | H150: 379
A151: =A150+1 -> 131 | B151: =IF(C151=1,B150+1,B150) -> 6 | C151: =IF(C150=25,1,C150+1) -> 6 | D151: =AND(OR(MOD(B151,4)=0,MOD(B151,51)=0),C151=24) -> FALSE | E151: =IF(MOD(C151,2)=1,30,29)+IF(D151,1,0) -> 29 | F151: 3263130 | G151: 3263150 | H151: =F151-G151 -> -20
A152: 132 | B152: 6 | C152: 7 | D152: FALSE | E152: 30 | F152: 3288231 | G152: 3287800 | H152: 431
A153: 133 | B153: 6 | C153: 8 | D153: FALSE | E153: 29 | F153: 3313332 | G153: 3313300 | H153: 32
A154: 134 | B154: 6 | C154: 9 | D154: FALSE | E154: 30 | F154: 3338433 | G154: 3337950 | H154: 483
A155: 135 | B155: 6 | C155: 10 | D155: FALSE | E155: 29 | F155: 3363534 | G155: 3363450 | H155: 84
A156: 136 | B156: 6 | C156: 11 | D156: FALSE | E156: 30 | F156: 3388635 | G156: 3388100 | H156: 535
A157: 137 | B157: 6 | C157: 12 | D157: FALSE | E157: 29 | F157: 3413736 | G157: 3413600 | H157: 136
A158: 138 | B158: 6 | C158: 13 | D158: FALSE | E158: 30 | F158: 3438837 | G158: 3438250 | H158: 587
A159: 139 | B159: 6 | C159: 14 | D159: FALSE | E159: 29 | F159: 3463938 | G159: 3463750 | H159: 188
A160: 140 | B160: 6 | C160: 15 | D160: FALSE | E160: 30 | F160: 3489039 | G160: 3488400 | H160: 639
A161: 141 | B161: 6 | C161: 16 | D161: FALSE | E161: 29 | F161: 3514140 | G161: 3513900 | H161: 240
A162: 142 | B162: 6 | C162: 17 | D162: FALSE | E162: 30 | F162: 3539241 | G162: 3538550 | H162: 691
A163: 143 | B163: 6 | C163: 18 | D163: FALSE | E163: 29 | F163: 3564342 | G163: 3564050 | H163: 292
A164: 144 | B164: 6 | C164: 19 | D164: FALSE | E164: 30 | F164: 3589443 | G164: 3588700 | H164: 743
A165: 145 | B165: 6 | C165: 20 | D165: FALSE | E165: 29 | F165: 3614544 | G165: 3614200 | H165: 344
A166: 146 | B166: 6 | C166: 21 | D166: FALSE | E166: 30 | F166: 3639645 | G166: 3638850 | H166: 795
A167: 147 | B167: 6 | C167: 22 | D167: FALSE | E167: 29 | F167: 3664746 | G167: 3664350 | H167: 396
A168: 148 | B168: 6 | C168: 23 | D168: FALSE | E168: 30 | F168: 3689847 | G168: 3689000 | H168: 847
A169: 149 | B169: 6 | C169: 24 | D169: FALSE | E169: 29 | F169: 3714948 | G169: 3714500 | H169: 448
A170: 150 | B170: 6 | C170: 25 | D170: FALSE | E170: 30 | F170: 3740049 | G170: 3739150 | H170: 899
A171: 151 | B171: 7 | C171: 1 | D171: FALSE | E171: 30 | F171: 3765150 | G171: 3764650 | H171: 500
A172: 152 | B172: 7 | C172: 2 | D172: FALSE | E172: 29 | F172: 3790251 | G172: 3790150 | H172: 101
A173: 153 | B173: 7 | C173: 3 | D173: FALSE | E173: 30 | F173: 3815352 | G173: 3814800 | H173: 552
A174: 154 | B174: 7 | C174: 4 | D174: FALSE | E174: 29 | F174: 3840453 | G174: 3840300 | H174: 153
A175: 155 | B175: 7 | C175: 5 | D175: FALSE | E175: 30 | F175: 3865554 | G175: 3864950 | H175: 604
A176: 156 | B176: 7 | C176: 6 | D176: FALSE | E176: 29 | F176: 3890655 | G176: 3890450 | H176: 205
A177: 157 | B177: 7 | C177: 7 | D177: FALSE | E177: 30 | F177: 3915756 | G177: 3915100 | H177: 656
A178: 158 | B178: 7 | C178: 8 | D178: FALSE | E178: 29 | F178: 3940857 | G178: 3940600 | H178: 257
A179: 159 | B179: 7 | C179: 9 | D179: FALSE | E179: 30 | F179: 3965958 | G179: 3965250 | H179: 708
A180: 160 | B180: 7 | C180: 10 | D180: FALSE | E180: 29 | F180: 3991059 | G180: 3990750 | H180: 309
A181: 161 | B181: 7 | C181: 11 | D181: FALSE | E181: 30 | F181: 4016160 | G181: 4015400 | H181: 760
A182: 162 | B182: 7 | C182: 12 | D182: FALSE | E182: 29 | F182: 4041261 | G182: 4040900 | H182: 361
A183: 163 | B183: 7 | C183: 13 | D183: FALSE | E183: 30 | F183: 4066362 | G183: 4065550 | H183: 812
A184: 164 | B184: 7 | C184: 14 | D184: FALSE | E184: 29 | F184: 4091463 | G184: 4091050 | H184: 413
A185: 165 | B185: 7 | C185: 15 | D185: FALSE | E185: 30 | F185: 4116564 | G185: 4115700 | H185: 864
A186: 166 | B186: 7 | C186: 16 | D186: FALSE | E186: 29 | F186: 4141665 | G186: 4141200 | H186: 465
A187: 167 | B187: 7 | C187: 17 | D187: FALSE | E187: 30 | F187: 4166766 | G187: 4165850 | H187: 916
A188: 168 | B188: 7 | C188: 18 | D188: FALSE | E188: 29 | F188: 4191867 | G188: 4191350 | H188: 517
A189: 169 | B189: 7 | C189: 19 | D189: FALSE | E189: 30 | F189: 4216968 | G189: 4216000 | H189: 968
A190: 170 | B190: 7 | C190: 20 | D190: FALSE | E190: 29 | F190: 4242069 | G190: 4241500 | H190: 569
A191: 171 | B191: 7 | C191: 21 | D191: FALSE | E191: 30 | F191: 4267170 | G191: 4266150 | H191: 1020
A192: 172 | B192: 7 | C192: 22 | D192: FALSE | E192: 29 | F192: 4292271 | G192: 4291650 | H192: 621
A193: 173 | B193: 7 | C193: 23 | D193: FALSE | E193: 30 | F193: 4317372 | G193: 4316300 | H193: 1072
A194: 174 | B194: 7 | C194: 24 | D194: FALSE | E194: 29 | F194: 4342473 | G194: 4341800 | H194: 673
A195: 175 | B195: 7 | C195: 25 | D195: FALSE | E195: 30 | F195: 4367574 | G195: 4366450 | H195: 1124
A196: 176 | B196: 8 | C196: 1 | D196: FALSE | E196: 30 | F196: 4392675 | G196: 4391950 | H196: 725
A197: 177 | B197: 8 | C197: 2 | D197: FALSE | E197: 29 | F197: 4417776 | G197: 4417450 | H197: 326
A198: 178 | B198: 8 | C198: 3 | D198: FALSE | E198: 30 | F198: 4442877 | G198: 4442100 | H198: 777
A199: 179 | B199: 8 | C199: 4 | D199: FALSE | E199: 29 | F199: 4467978 | G199: 4467600 | H199: 378
A200: 180 | B200: 8 | C200: 5 | D200: FALSE | E200: 30 | F200: 4493079 | G200: 4492250 | H200: 829
A201: 181 | B201: 8 | C201: 6 | D201: FALSE | E201: 29 | F201: 4518180 | G201: 4517750 | H201: 430
A202: 182 | B202: 8 | C202: 7 | D202: FALSE | E202: 30 | F202: 4543281 | G202: 4542400 | H202: 881
... 10043 more rows

Sheet Years
A1: Month in Cycle | B1: Lunar Year | C1: New Year Moment | D1: Elapsed | E1: Difference
A2: =StartMonth -> 25 | B2: 1 | C2: =(A2-1)*PPM -> 602424 | D2: =LOOKUP(A2,Data!A$21:A$10245,Data!G$21:G$10245) -> 601800 | E2: =C2-D2 -> 624
A3: =A2+25 -> 50 | B3: =B2+1 -> 2 | C3: =(A3-1)*PPM -> 1229949 | D3: =LOOKUP(A3,Data!A$21:A$10245,Data!G$21:G$10245) -> 1229100 | E3: =C3-D3 -> 849
A4: =A3+25 -> 75 | B4: =B3+1 -> 3 | C4: =(A4-1)*PPM -> 1857474 | D4: =LOOKUP(A4,Data!A$21:A$10245,Data!G$21:G$10245) -> 1856400 | E4: =C4-D4 -> 1074
A5: 100 | B5: 4 | C5: 2484999 | D5: =LOOKUP(A5,Data!A$21:A$10245,Data!G$21:G$10245) -> 2484550 | E5: 449
A6: 125 | B6: 5 | C6: 3112524 | D6: =LOOKUP(A6,Data!A$21:A$10245,Data!G$21:G$10245) -> 3111850 | E6: 674
A7: 150 | B7: 6 | C7: 3740049 | D7: =LOOKUP(A7,Data!A$21:A$10245,Data!G$21:G$10245) -> 3739150 | E7: 899
A8: 175 | B8: 7 | C8: 4367574 | D8: =LOOKUP(A8,Data!A$21:A$10245,Data!G$21:G$10245) -> 4366450 | E8: 1124
A9: 200 | B9: 8 | C9: 4995099 | D9: =LOOKUP(A9,Data!A$21:A$10245,Data!G$21:G$10245) -> 4994600 | E9: 499
A10: 225 | B10: 9 | C10: 5622624 | D10: =LOOKUP(A10,Data!A$21:A$10245,Data!G$21:G$10245) -> 5621900 | E10: 724
A11: 250 | B11: 10 | C11: 6250149 | D11: =LOOKUP(A11,Data!A$21:A$10245,Data!G$21:G$10245) -> 6249200 | E11: 949
A12: 275 | B12: 11 | C12: 6877674 | D12: =LOOKUP(A12,Data!A$21:A$10245,Data!G$21:G$10245) -> 6876500 | E12: 1174
A13: 300 | B13: 12 | C13: 7505199 | D13: =LOOKUP(A13,Data!A$21:A$10245,Data!G$21:G$10245) -> 7504650 | E13: 549
A14: 325 | B14: 13 | C14: 8132724 | D14: =LOOKUP(A14,Data!A$21:A$10245,Data!G$21:G$10245) -> 8131950 | E14: 774
A15: 350 | B15: 14 | C15: 8760249 | D15: =LOOKUP(A15,Data!A$21:A$10245,Data!G$21:G$10245) -> 8759250 | E15: 999
A16: 375 | B16: 15 | C16: 9387774 | D16: =LOOKUP(A16,Data!A$21:A$10245,Data!G$21:G$10245) -> 9386550 | E16: 1224
A17: 400 | B17: 16 | C17: 10015299 | D17: =LOOKUP(A17,Data!A$21:A$10245,Data!G$21:G$10245) -> 10014700 | E17: 599
A18: 425 | B18: 17 | C18: 10642824 | D18: =LOOKUP(A18,Data!A$21:A$10245,Data!G$21:G$10245) -> 10642000 | E18: 824
A19: 450 | B19: 18 | C19: 11270349 | D19: =LOOKUP(A19,Data!A$21:A$10245,Data!G$21:G$10245) -> 11269300 | E19: 1049
A20: 475 | B20: 19 | C20: 11897874 | D20: =LOOKUP(A20,Data!A$21:A$10245,Data!G$21:G$10245) -> 11896600 | E20: 1274
A21: 500 | B21: 20 | C21: 12525399 | D21: =LOOKUP(A21,Data!A$21:A$10245,Data!G$21:G$10245) -> 12524750 | E21: 649
A22: 525 | B22: 21 | C22: 13152924 | D22: =LOOKUP(A22,Data!A$21:A$10245,Data!G$21:G$10245) -> 13152050 | E22: 874
A23: 550 | B23: 22 | C23: 13780449 | D23: =LOOKUP(A23,Data!A$21:A$10245,Data!G$21:G$10245) -> 13779350 | E23: 1099
A24: 575 | B24: 23 | C24: 14407974 | D24: =LOOKUP(A24,Data!A$21:A$10245,Data!G$21:G$10245) -> 14406650 | E24: 1324
A25: 600 | B25: 24 | C25: 15035499 | D25: =LOOKUP(A25,Data!A$21:A$10245,Data!G$21:G$10245) -> 15034800 | E25: 699
A26: 625 | B26: 25 | C26: 15663024 | D26: =LOOKUP(A26,Data!A$21:A$10245,Data!G$21:G$10245) -> 15662100 | E26: 924
A27: 650 | B27: 26 | C27: 16290549 | D27: =LOOKUP(A27,Data!A$21:A$10245,Data!G$21:G$10245) -> 16289400 | E27: 1149
A28: 675 | B28: 27 | C28: 16918074 | D28: =LOOKUP(A28,Data!A$21:A$10245,Data!G$21:G$10245) -> 16916700 | E28: 1374
A29: 700 | B29: 28 | C29: 17545599 | D29: =LOOKUP(A29,Data!A$21:A$10245,Data!G$21:G$10245) -> 17544850 | E29: 749
A30: 725 | B30: 29 | C30: 18173124 | D30: =LOOKUP(A30,Data!A$21:A$10245,Data!G$21:G$10245) -> 18172150 | E30: 974
A31: 750 | B31: 30 | C31: 18800649 | D31: =LOOKUP(A31,Data!A$21:A$10245,Data!G$21:G$10245) -> 18799450 | E31: 1199
A32: 775 | B32: 31 | C32: 19428174 | D32: =LOOKUP(A32,Data!A$21:A$10245,Data!G$21:G$10245) -> 19426750 | E32: 1424
A33: 800 | B33: 32 | C33: 20055699 | D33: =LOOKUP(A33,Data!A$21:A$10245,Data!G$21:G$10245) -> 20054900 | E33: 799
A34: 825 | B34: 33 | C34: 20683224 | D34: =LOOKUP(A34,Data!A$21:A$10245,Data!G$21:G$10245) -> 20682200 | E34: 1024
A35: 850 | B35: 34 | C35: 21310749 | D35: =LOOKUP(A35,Data!A$21:A$10245,Data!G$21:G$10245) -> 21309500 | E35: 1249
A36: 875 | B36: 35 | C36: 21938274 | D36: =LOOKUP(A36,Data!A$21:A$10245,Data!G$21:G$10245) -> 21936800 | E36: 1474
A37: 900 | B37: 36 | C37: 22565799 | D37: =LOOKUP(A37,Data!A$21:A$10245,Data!G$21:G$10245) -> 22564950 | E37: 849
A38: 925 | B38: 37 | C38: 23193324 | D38: =LOOKUP(A38,Data!A$21:A$10245,Data!G$21:G$10245) -> 23192250 | E38: 1074
A39: 950 | B39: 38 | C39: 23820849 | D39: =LOOKUP(A39,Data!A$21:A$10245,Data!G$21:G$10245) -> 23819550 | E39: 1299
A40: 975 | B40: 39 | C40: 24448374 | D40: =LOOKUP(A40,Data!A$21:A$10245,Data!G$21:G$10245) -> 24446850 | E40: 1524
A41: 1000 | B41: 40 | C41: 25075899 | D41: =LOOKUP(A41,Data!A$21:A$10245,Data!G$21:G$10245) -> 25075000 | E41: 899
A42: 1025 | B42: 41 | C42: 25703424 | D42: =LOOKUP(A42,Data!A$21:A$10245,Data!G$21:G$10245) -> 25702300 | E42: 1124
A43: 1050 | B43: 42 | C43: 26330949 | D43: =LOOKUP(A43,Data!A$21:A$10245,Data!G$21:G$10245) -> 26329600 | E43: 1349
A44: 1075 | B44: 43 | C44: 26958474 | D44: =LOOKUP(A44,Data!A$21:A$10245,Data!G$21:G$10245) -> 26956900 | E44: 1574
A45: 1100 | B45: 44 | C45: 27585999 | D45: =LOOKUP(A45,Data!A$21:A$10245,Data!G$21:G$10245) -> 27585050 | E45: 949
A46: 1125 | B46: 45 | C46: 28213524 | D46: =LOOKUP(A46,Data!A$21:A$10245,Data!G$21:G$10245) -> 28212350 | E46: 1174
A47: 1150 | B47: 46 | C47: 28841049 | D47: =LOOKUP(A47,Data!A$21:A$10245,Data!G$21:G$10245) -> 28839650 | E47: 1399
A48: 1175 | B48: 47 | C48: 29468574 | D48: =LOOKUP(A48,Data!A$21:A$10245,Data!G$21:G$10245) -> 29466950 | E48: 1624
A49: 1200 | B49: 48 | C49: 30096099 | D49: =LOOKUP(A49,Data!A$21:A$10245,Data!G$21:G$10245) -> 30095100 | E49: 999
A50: 1225 | B50: 49 | C50: 30723624 | D50: =LOOKUP(A50,Data!A$21:A$10245,Data!G$21:G$10245) -> 30722400 | E50: 1224
A51: 1250 | B51: 50 | C51: 31351149 | D51: =LOOKUP(A51,Data!A$21:A$10245,Data!G$21:G$10245) -> 31349700 | E51: 1449
A52: 1275 | B52: 51 | C52: 31978674 | D52: =LOOKUP(A52,Data!A$21:A$10245,Data!G$21:G$10245) -> 31977850 | E52: 824
A53: 1300 | B53: 52 | C53: 32606199 | D53: =LOOKUP(A53,Data!A$21:A$10245,Data!G$21:G$10245) -> 32606000 | E53: 199
A54: 1325 | B54: 53 | C54: 33233724 | D54: =LOOKUP(A54,Data!A$21:A$10245,Data!G$21:G$10245) -> 33233300 | E54: 424
A55: 1350 | B55: 54 | C55: 33861249 | D55: =LOOKUP(A55,Data!A$21:A$10245,Data!G$21:G$10245) -> 33860600 | E55: 649
A56: 1375 | B56: 55 | C56: 34488774 | D56: =LOOKUP(A56,Data!A$21:A$10245,Data!G$21:G$10245) -> 34487900 | E56: 874
A57: 1400 | B57: 56 | C57: 35116299 | D57: =LOOKUP(A57,Data!A$21:A$10245,Data!G$21:G$10245) -> 35116050 | E57: 249
A58: 1425 | B58: 57 | C58: 35743824 | D58: =LOOKUP(A58,Data!A$21:A$10245,Data!G$21:G$10245) -> 35743350 | E58: 474
A59: 1450 | B59: 58 | C59: 36371349 | D59: =LOOKUP(A59,Data!A$21:A$10245,Data!G$21:G$10245) -> 36370650 | E59: 699
A60: 1475 | B60: 59 | C60: 36998874 | D60: =LOOKUP(A60,Data!A$21:A$10245,Data!G$21:G$10245) -> 36997950 | E60: 924
A61: 1500 | B61: 60 | C61: 37626399 | D61: =LOOKUP(A61,Data!A$21:A$10245,Data!G$21:G$10245) -> 37626100 | E61: 299
A62: 1525 | B62: 61 | C62: 38253924 | D62: =LOOKUP(A62,Data!A$21:A$10245,Data!G$21:G$10245) -> 38253400 | E62: 524
A63: 1550 | B63: 62 | C63: 38881449 | D63: =LOOKUP(A63,Data!A$21:A$10245,Data!G$21:G$10245) -> 38880700 | E63: 749
A64: 1575 | B64: 63 | C64: 39508974 | D64: =LOOKUP(A64,Data!A$21:A$10245,Data!G$21:G$10245) -> 39508000 | E64: 974
A65: 1600 | B65: 64 | C65: 40136499 | D65: =LOOKUP(A65,Data!A$21:A$10245,Data!G$21:G$10245) -> 40136150 | E65: 349
A66: 1625 | B66: 65 | C66: 40764024 | D66: =LOOKUP(A66,Data!A$21:A$10245,Data!G$21:G$10245) -> 40763450 | E66: 574
A67: 1650 | B67: 66 | C67: 41391549 | D67: =LOOKUP(A67,Data!A$21:A$10245,Data!G$21:G$10245) -> 41390750 | E67: 799
A68: =A67+25 -> 1675 | B68: =B67+1 -> 67 | C68: =(A68-1)*PPM -> 42019074 | D68: =LOOKUP(A68,Data!A$21:A$10245,Data!G$21:G$10245) -> 42018050 | E68: =C68-D68 -> 1024
A69: 1700 | B69: 68 | C69: 42646599 | D69: =LOOKUP(A69,Data!A$21:A$10245,Data!G$21:G$10245) -> 42646200 | E69: 399
A70: 1725 | B70: 69 | C70: 43274124 | D70: =LOOKUP(A70,Data!A$21:A$10245,Data!G$21:G$10245) -> 43273500 | E70: 624
A71: 1750 | B71: 70 | C71: 43901649 | D71: =LOOKUP(A71,Data!A$21:A$10245,Data!G$21:G$10245) -> 43900800 | E71: 849
A72: 1775 | B72: 71 | C72: 44529174 | D72: =LOOKUP(A72,Data!A$21:A$10245,Data!G$21:G$10245) -> 44528100 | E72: 1074
A73: 1800 | B73: 72 | C73: 45156699 | D73: =LOOKUP(A73,Data!A$21:A$10245,Data!G$21:G$10245) -> 45156250 | E73: 449
A74: 1825 | B74: 73 | C74: 45784224 | D74: =LOOKUP(A74,Data!A$21:A$10245,Data!G$21:G$10245) -> 45783550 | E74: 674
A75: 1850 | B75: 74 | C75: 46411749 | D75: =LOOKUP(A75,Data!A$21:A$10245,Data!G$21:G$10245) -> 46410850 | E75: 899
A76: 1875 | B76: 75 | C76: 47039274 | D76: =LOOKUP(A76,Data!A$21:A$10245,Data!G$21:G$10245) -> 47038150 | E76: 1124
A77: 1900 | B77: 76 | C77: 47666799 | D77: =LOOKUP(A77,Data!A$21:A$10245,Data!G$21:G$10245) -> 47666300 | E77: 499
A78: 1925 | B78: 77 | C78: 48294324 | D78: =LOOKUP(A78,Data!A$21:A$10245,Data!G$21:G$10245) -> 48293600 | E78: 724
A79: 1950 | B79: 78 | C79: 48921849 | D79: =LOOKUP(A79,Data!A$21:A$10245,Data!G$21:G$10245) -> 48920900 | E79: 949
A80: 1975 | B80: 79 | C80: 49549374 | D80: =LOOKUP(A80,Data!A$21:A$10245,Data!G$21:G$10245) -> 49548200 | E80: 1174
A81: 2000 | B81: 80 | C81: 50176899 | D81: =LOOKUP(A81,Data!A$21:A$10245,Data!G$21:G$10245) -> 50176350 | E81: 549
A82: 2025 | B82: 81 | C82: 50804424 | D82: =LOOKUP(A82,Data!A$21:A$10245,Data!G$21:G$10245) -> 50803650 | E82: 774
A83: 2050 | B83: 82 | C83: 51431949 | D83: =LOOKUP(A83,Data!A$21:A$10245,Data!G$21:G$10245) -> 51430950 | E83: 999
A84: 2075 | B84: 83 | C84: 52059474 | D84: =LOOKUP(A84,Data!A$21:A$10245,Data!G$21:G$10245) -> 52058250 | E84: 1224
A85: 2100 | B85: 84 | C85: 52686999 | D85: =LOOKUP(A85,Data!A$21:A$10245,Data!G$21:G$10245) -> 52686400 | E85: 599
A86: 2125 | B86: 85 | C86: 53314524 | D86: =LOOKUP(A86,Data!A$21:A$10245,Data!G$21:G$10245) -> 53313700 | E86: 824
A87: 2150 | B87: 86 | C87: 53942049 | D87: =LOOKUP(A87,Data!A$21:A$10245,Data!G$21:G$10245) -> 53941000 | E87: 1049
A88: 2175 | B88: 87 | C88: 54569574 | D88: =LOOKUP(A88,Data!A$21:A$10245,Data!G$21:G$10245) -> 54568300 | E88: 1274
A89: 2200 | B89: 88 | C89: 55197099 | D89: =LOOKUP(A89,Data!A$21:A$10245,Data!G$21:G$10245) -> 55196450 | E89: 649
A90: 2225 | B90: 89 | C90: 55824624 | D90: =LOOKUP(A90,Data!A$21:A$10245,Data!G$21:G$10245) -> 55823750 | E90: 874
A91: 2250 | B91: 90 | C91: 56452149 | D91: =LOOKUP(A91,Data!A$21:A$10245,Data!G$21:G$10245) -> 56451050 | E91: 1099
A92: 2275 | B92: 91 | C92: 57079674 | D92: =LOOKUP(A92,Data!A$21:A$10245,Data!G$21:G$10245) -> 57078350 | E92: 1324
A93: 2300 | B93: 92 | C93: 57707199 | D93: =LOOKUP(A93,Data!A$21:A$10245,Data!G$21:G$10245) -> 57706500 | E93: 699
A94: 2325 | B94: 93 | C94: 58334724 | D94: =LOOKUP(A94,Data!A$21:A$10245,Data!G$21:G$10245) -> 58333800 | E94: 924
A95: 2350 | B95: 94 | C95: 58962249 | D95: =LOOKUP(A95,Data!A$21:A$10245,Data!G$21:G$10245) -> 58961100 | E95: 1149
A96: 2375 | B96: 95 | C96: 59589774 | D96: =LOOKUP(A96,Data!A$21:A$10245,Data!G$21:G$10245) -> 59588400 | E96: 1374
A97: 2400 | B97: 96 | C97: 60217299 | D97: =LOOKUP(A97,Data!A$21:A$10245,Data!G$21:G$10245) -> 60216550 | E97: 749
A98: 2425 | B98: 97 | C98: 60844824 | D98: =LOOKUP(A98,Data!A$21:A$10245,Data!G$21:G$10245) -> 60843850 | E98: 974
A99: 2450 | B99: 98 | C99: 61472349 | D99: =LOOKUP(A99,Data!A$21:A$10245,Data!G$21:G$10245) -> 61471150 | E99: 1199
A100: 2475 | B100: 99 | C100: 62099874 | D100: =LOOKUP(A100,Data!A$21:A$10245,Data!G$21:G$10245) -> 62098450 | E100: 1424
A101: 2500 | B101: 100 | C101: 62727399 | D101: =LOOKUP(A101,Data!A$21:A$10245,Data!G$21:G$10245) -> 62726600 | E101: 799
A102: 2525 | B102: 101 | C102: 63354924 | D102: =LOOKUP(A102,Data!A$21:A$10245,Data!G$21:G$10245) -> 63353900 | E102: 1024
A103: 2550 | B103: 102 | C103: 63982449 | D103: =LOOKUP(A103,Data!A$21:A$10245,Data!G$21:G$10245) -> 63982050 | E103: 399
A104: 2575 | B104: 103 | C104: 64609974 | D104: =LOOKUP(A104,Data!A$21:A$10245,Data!G$21:G$10245) -> 64609350 | E104: 624
A105: 2600 | B105: 104 | C105: 65237499 | D105: =LOOKUP(A105,Data!A$21:A$10245,Data!G$21:G$10245) -> 65237500 | E105: -1
A106: 2625 | B106: 105 | C106: 65865024 | D106: =LOOKUP(A106,Data!A$21:A$10245,Data!G$21:G$10245) -> 65864800 | E106: 224
A107: 2650 | B107: 106 | C107: 66492549 | D107: =LOOKUP(A107,Data!A$21:A$10245,Data!G$21:G$10245) -> 66492100 | E107: 449
A108: 2675 | B108: 107 | C108: 67120074 | D108: =LOOKUP(A108,Data!A$21:A$10245,Data!G$21:G$10245) -> 67119400 | E108: 674
A109: 2700 | B109: 108 | C109: 67747599 | D109: =LOOKUP(A109,Data!A$21:A$10245,Data!G$21:G$10245) -> 67747550 | E109: 49
A110: 2725 | B110: 109 | C110: 68375124 | D110: =LOOKUP(A110,Data!A$21:A$10245,Data!G$21:G$10245) -> 68374850 | E110: 274
A111: 2750 | B111: 110 | C111: 69002649 | D111: =LOOKUP(A111,Data!A$21:A$10245,Data!G$21:G$10245) -> 69002150 | E111: 499
A112: 2775 | B112: 111 | C112: 69630174 | D112: =LOOKUP(A112,Data!A$21:A$10245,Data!G$21:G$10245) -> 69629450 | E112: 724
A113: 2800 | B113: 112 | C113: 70257699 | D113: =LOOKUP(A113,Data!A$21:A$10245,Data!G$21:G$10245) -> 70257600 | E113: 99
A114: 2825 | B114: 113 | C114: 70885224 | D114: =LOOKUP(A114,Data!A$21:A$10245,Data!G$21:G$10245) -> 70884900 | E114: 324
A115: 2850 | B115: 114 | C115: 71512749 | D115: =LOOKUP(A115,Data!A$21:A$10245,Data!G$21:G$10245) -> 71512200 | E115: 549
A116: 2875 | B116: 115 | C116: 72140274 | D116: =LOOKUP(A116,Data!A$21:A$10245,Data!G$21:G$10245) -> 72139500 | E116: 774
A117: 2900 | B117: 116 | C117: 72767799 | D117: =LOOKUP(A117,Data!A$21:A$10245,Data!G$21:G$10245) -> 72767650 | E117: 149
A118: 2925 | B118: 117 | C118: 73395324 | D118: =LOOKUP(A118,Data!A$21:A$10245,Data!G$21:G$10245) -> 73394950 | E118: 374
A119: 2950 | B119: 118 | C119: 74022849 | D119: =LOOKUP(A119,Data!A$21:A$10245,Data!G$21:G$10245) -> 74022250 | E119: 599
A120: 2975 | B120: 119 | C120: 74650374 | D120: =LOOKUP(A120,Data!A$21:A$10245,Data!G$21:G$10245) -> 74649550 | E120: 824
A121: 3000 | B121: 120 | C121: 75277899 | D121: =LOOKUP(A121,Data!A$21:A$10245,Data!G$21:G$10245) -> 75277700 | E121: 199
A122: 3025 | B122: 121 | C122: 75905424 | D122: =LOOKUP(A122,Data!A$21:A$10245,Data!G$21:G$10245) -> 75905000 | E122: 424
A123: 3050 | B123: 122 | C123: 76532949 | D123: =LOOKUP(A123,Data!A$21:A$10245,Data!G$21:G$10245) -> 76532300 | E123: 649
A124: 3075 | B124: 123 | C124: 77160474 | D124: =LOOKUP(A124,Data!A$21:A$10245,Data!G$21:G$10245) -> 77159600 | E124: 874
A125: 3100 | B125: 124 | C125: 77787999 | D125: =LOOKUP(A125,Data!A$21:A$10245,Data!G$21:G$10245) -> 77787750 | E125: 249
A126: 3125 | B126: 125 | C126: 78415524 | D126: =LOOKUP(A126,Data!A$21:A$10245,Data!G$21:G$10245) -> 78415050 | E126: 474
A127: 3150 | B127: 126 | C127: 79043049 | D127: =LOOKUP(A127,Data!A$21:A$10245,Data!G$21:G$10245) -> 79042350 | E127: 699
A128: 3175 | B128: 127 | C128: 79670574 | D128: =LOOKUP(A128,Data!A$21:A$10245,Data!G$21:G$10245) -> 79669650 | E128: 924
A129: 3200 | B129: 128 | C129: 80298099 | D129: =LOOKUP(A129,Data!A$21:A$10245,Data!G$21:G$10245) -> 80297800 | E129: 299
A130: 3225 | B130: 129 | C130: 80925624 | D130: =LOOKUP(A130,Data!A$21:A$10245,Data!G$21:G$10245) -> 80925100 | E130: 524
A131: 3250 | B131: 130 | C131: 81553149 | D131: =LOOKUP(A131,Data!A$21:A$10245,Data!G$21:G$10245) -> 81552400 | E131: 749
A132: =A131+25 -> 3275 | B132: =B131+1 -> 131 | C132: =(A132-1)*PPM -> 82180674 | D132: =LOOKUP(A132,Data!A$21:A$10245,Data!G$21:G$10245) -> 82179700 | E132: =C132-D132 -> 974
A133: 3300 | B133: 132 | C133: 82808199 | D133: =LOOKUP(A133,Data!A$21:A$10245,Data!G$21:G$10245) -> 82807850 | E133: 349
A134: 3325 | B134: 133 | C134: 83435724 | D134: =LOOKUP(A134,Data!A$21:A$10245,Data!G$21:G$10245) -> 83435150 | E134: 574
A135: 3350 | B135: 134 | C135: 84063249 | D135: =LOOKUP(A135,Data!A$21:A$10245,Data!G$21:G$10245) -> 84062450 | E135: 799
A136: 3375 | B136: 135 | C136: 84690774 | D136: =LOOKUP(A136,Data!A$21:A$10245,Data!G$21:G$10245) -> 84689750 | E136: 1024
A137: 3400 | B137: 136 | C137: 85318299 | D137: =LOOKUP(A137,Data!A$21:A$10245,Data!G$21:G$10245) -> 85317900 | E137: 399
A138: 3425 | B138: 137 | C138: 85945824 | D138: =LOOKUP(A138,Data!A$21:A$10245,Data!G$21:G$10245) -> 85945200 | E138: 624
A139: 3450 | B139: 138 | C139: 86573349 | D139: =LOOKUP(A139,Data!A$21:A$10245,Data!G$21:G$10245) -> 86572500 | E139: 849
A140: 3475 | B140: 139 | C140: 87200874 | D140: =LOOKUP(A140,Data!A$21:A$10245,Data!G$21:G$10245) -> 87199800 | E140: 1074
A141: 3500 | B141: 140 | C141: 87828399 | D141: =LOOKUP(A141,Data!A$21:A$10245,Data!G$21:G$10245) -> 87827950 | E141: 449
A142: 3525 | B142: 141 | C142: 88455924 | D142: =LOOKUP(A142,Data!A$21:A$10245,Data!G$21:G$10245) -> 88455250 | E142: 674
A143: 3550 | B143: 142 | C143: 89083449 | D143: =LOOKUP(A143,Data!A$21:A$10245,Data!G$21:G$10245) -> 89082550 | E143: 899
A144: 3575 | B144: 143 | C144: 89710974 | D144: =LOOKUP(A144,Data!A$21:A$10245,Data!G$21:G$10245) -> 89709850 | E144: 1124
A145: 3600 | B145: 144 | C145: 90338499 | D145: =LOOKUP(A145,Data!A$21:A$10245,Data!G$21:G$10245) -> 90338000 | E145: 499
A146: 3625 | B146: 145 | C146: 90966024 | D146: =LOOKUP(A146,Data!A$21:A$10245,Data!G$21:G$10245) -> 90965300 | E146: 724
A147: 3650 | B147: 146 | C147: 91593549 | D147: =LOOKUP(A147,Data!A$21:A$10245,Data!G$21:G$10245) -> 91592600 | E147: 949
A148: 3675 | B148: 147 | C148: 92221074 | D148: =LOOKUP(A148,Data!A$21:A$10245,Data!G$21:G$10245) -> 92219900 | E148: 1174
A149: 3700 | B149: 148 | C149: 92848599 | D149: =LOOKUP(A149,Data!A$21:A$10245,Data!G$21:G$10245) -> 92848050 | E149: 549
A150: 3725 | B150: 149 | C150: 93476124 | D150: =LOOKUP(A150,Data!A$21:A$10245,Data!G$21:G$10245) -> 93475350 | E150: 774
A151: 3750 | B151: 150 | C151: 94103649 | D151: =LOOKUP(A151,Data!A$21:A$10245,Data!G$21:G$10245) -> 94102650 | E151: 999
A152: 3775 | B152: 151 | C152: 94731174 | D152: =LOOKUP(A152,Data!A$21:A$10245,Data!G$21:G$10245) -> 94729950 | E152: 1224
A153: 3800 | B153: 152 | C153: 95358699 | D153: =LOOKUP(A153,Data!A$21:A$10245,Data!G$21:G$10245) -> 95358100 | E153: 599
A154: 3825 | B154: 153 | C154: 95986224 | D154: =LOOKUP(A154,Data!A$21:A$10245,Data!G$21:G$10245) -> 95986250 | E154: -26
A155: 3850 | B155: 154 | C155: 96613749 | D155: =LOOKUP(A155,Data!A$21:A$10245,Data!G$21:G$10245) -> 96613550 | E155: 199
A156: 3875 | B156: 155 | C156: 97241274 | D156: =LOOKUP(A156,Data!A$21:A$10245,Data!G$21:G$10245) -> 97240850 | E156: 424
A157: 3900 | B157: 156 | C157: 97868799 | D157: =LOOKUP(A157,Data!A$21:A$10245,Data!G$21:G$10245) -> 97869000 | E157: -201
A158: 3925 | B158: 157 | C158: 98496324 | D158: =LOOKUP(A158,Data!A$21:A$10245,Data!G$21:G$10245) -> 98496300 | E158: 24
A159: 3950 | B159: 158 | C159: 99123849 | D159: =LOOKUP(A159,Data!A$21:A$10245,Data!G$21:G$10245) -> 99123600 | E159: 249
A160: 3975 | B160: 159 | C160: 99751374 | D160: =LOOKUP(A160,Data!A$21:A$10245,Data!G$21:G$10245) -> 99750900 | E160: 474
A161: 4000 | B161: 160 | C161: 100378899 | D161: =LOOKUP(A161,Data!A$21:A$10245,Data!G$21:G$10245) -> 100379050 | E161: -151
A162: 4025 | B162: 161 | C162: 101006424 | D162: =LOOKUP(A162,Data!A$21:A$10245,Data!G$21:G$10245) -> 101006350 | E162: 74
A163: 4050 | B163: 162 | C163: 101633949 | D163: =LOOKUP(A163,Data!A$21:A$10245,Data!G$21:G$10245) -> 101633650 | E163: 299
A164: 4075 | B164: 163 | C164: 102261474 | D164: =LOOKUP(A164,Data!A$21:A$10245,Data!G$21:G$10245) -> 102260950 | E164: 524
A165: 4100 | B165: 164 | C165: 102888999 | D165: =LOOKUP(A165,Data!A$21:A$10245,Data!G$21:G$10245) -> 102889100 | E165: -101
A166: 4125 | B166: 165 | C166: 103516524 | D166: =LOOKUP(A166,Data!A$21:A$10245,Data!G$21:G$10245) -> 103516400 | E166: 124
A167: 4150 | B167: 166 | C167: 104144049 | D167: =LOOKUP(A167,Data!A$21:A$10245,Data!G$21:G$10245) -> 104143700 | E167: 349
A168: 4175 | B168: 167 | C168: 104771574 | D168: =LOOKUP(A168,Data!A$21:A$10245,Data!G$21:G$10245) -> 104771000 | E168: 574
A169: 4200 | B169: 168 | C169: 105399099 | D169: =LOOKUP(A169,Data!A$21:A$10245,Data!G$21:G$10245) -> 105399150 | E169: -51
A170: 4225 | B170: 169 | C170: 106026624 | D170: =LOOKUP(A170,Data!A$21:A$10245,Data!G$21:G$10245) -> 106026450 | E170: 174
A171: 4250 | B171: 170 | C171: 106654149 | D171: =LOOKUP(A171,Data!A$21:A$10245,Data!G$21:G$10245) -> 106653750 | E171: 399
A172: 4275 | B172: 171 | C172: 107281674 | D172: =LOOKUP(A172,Data!A$21:A$10245,Data!G$21:G$10245) -> 107281050 | E172: 624
A173: 4300 | B173: 172 | C173: 107909199 | D173: =LOOKUP(A173,Data!A$21:A$10245,Data!G$21:G$10245) -> 107909200 | E173: -1
A174: 4325 | B174: 173 | C174: 108536724 | D174: =LOOKUP(A174,Data!A$21:A$10245,Data!G$21:G$10245) -> 108536500 | E174: 224
A175: 4350 | B175: 174 | C175: 109164249 | D175: =LOOKUP(A175,Data!A$21:A$10245,Data!G$21:G$10245) -> 109163800 | E175: 449
A176: 4375 | B176: 175 | C176: 109791774 | D176: =LOOKUP(A176,Data!A$21:A$10245,Data!G$21:G$10245) -> 109791100 | E176: 674
A177: 4400 | B177: 176 | C177: 110419299 | D177: =LOOKUP(A177,Data!A$21:A$10245,Data!G$21:G$10245) -> 110419250 | E177: 49
A178: 4425 | B178: 177 | C178: 111046824 | D178: =LOOKUP(A178,Data!A$21:A$10245,Data!G$21:G$10245) -> 111046550 | E178: 274
A179: 4450 | B179: 178 | C179: 111674349 | D179: =LOOKUP(A179,Data!A$21:A$10245,Data!G$21:G$10245) -> 111673850 | E179: 499
A180: 4475 | B180: 179 | C180: 112301874 | D180: =LOOKUP(A180,Data!A$21:A$10245,Data!G$21:G$10245) -> 112301150 | E180: 724
A181: 4500 | B181: 180 | C181: 112929399 | D181: =LOOKUP(A181,Data!A$21:A$10245,Data!G$21:G$10245) -> 112929300 | E181: 99
A182: 4525 | B182: 181 | C182: 113556924 | D182: =LOOKUP(A182,Data!A$21:A$10245,Data!G$21:G$10245) -> 113556600 | E182: 324
A183: 4550 | B183: 182 | C183: 114184449 | D183: =LOOKUP(A183,Data!A$21:A$10245,Data!G$21:G$10245) -> 114183900 | E183: 549
A184: 4575 | B184: 183 | C184: 114811974 | D184: =LOOKUP(A184,Data!A$21:A$10245,Data!G$21:G$10245) -> 114811200 | E184: 774
A185: 4600 | B185: 184 | C185: 115439499 | D185: =LOOKUP(A185,Data!A$21:A$10245,Data!G$21:G$10245) -> 115439350 | E185: 149
A186: 4625 | B186: 185 | C186: 116067024 | D186: =LOOKUP(A186,Data!A$21:A$10245,Data!G$21:G$10245) -> 116066650 | E186: 374
A187: 4650 | B187: 186 | C187: 116694549 | D187: =LOOKUP(A187,Data!A$21:A$10245,Data!G$21:G$10245) -> 116693950 | E187: 599
A188: 4675 | B188: 187 | C188: 117322074 | D188: =LOOKUP(A188,Data!A$21:A$10245,Data!G$21:G$10245) -> 117321250 | E188: 824
A189: 4700 | B189: 188 | C189: 117949599 | D189: =LOOKUP(A189,Data!A$21:A$10245,Data!G$21:G$10245) -> 117949400 | E189: 199
A190: 4725 | B190: 189 | C190: 118577124 | D190: =LOOKUP(A190,Data!A$21:A$10245,Data!G$21:G$10245) -> 118576700 | E190: 424
A191: 4750 | B191: 190 | C191: 119204649 | D191: =LOOKUP(A191,Data!A$21:A$10245,Data!G$21:G$10245) -> 119204000 | E191: 649
A192: 4775 | B192: 191 | C192: 119832174 | D192: =LOOKUP(A192,Data!A$21:A$10245,Data!G$21:G$10245) -> 119831300 | E192: 874
A193: 4800 | B193: 192 | C193: 120459699 | D193: =LOOKUP(A193,Data!A$21:A$10245,Data!G$21:G$10245) -> 120459450 | E193: 249
A194: 4825 | B194: 193 | C194: 121087224 | D194: =LOOKUP(A194,Data!A$21:A$10245,Data!G$21:G$10245) -> 121086750 | E194: 474
A195: 4850 | B195: 194 | C195: 121714749 | D195: =LOOKUP(A195,Data!A$21:A$10245,Data!G$21:G$10245) -> 121714050 | E195: 699
A196: =A195+25 -> 4875 | B196: =B195+1 -> 195 | C196: =(A196-1)*PPM -> 122342274 | D196: =LOOKUP(A196,Data!A$21:A$10245,Data!G$21:G$10245) -> 122341350 | E196: =C196-D196 -> 924
A197: 4900 | B197: 196 | C197: 122969799 | D197: =LOOKUP(A197,Data!A$21:A$10245,Data!G$21:G$10245) -> 122969500 | E197: 299
A198: 4925 | B198: 197 | C198: 123597324 | D198: =LOOKUP(A198,Data!A$21:A$10245,Data!G$21:G$10245) -> 123596800 | E198: 524
A199: 4950 | B199: 198 | C199: 124224849 | D199: =LOOKUP(A199,Data!A$21:A$10245,Data!G$21:G$10245) -> 124224100 | E199: 749
A200: 4975 | B200: 199 | C200: 124852374 | D200: =LOOKUP(A200,Data!A$21:A$10245,Data!G$21:G$10245) -> 124851400 | E200: 974
... 210 more rows

Sheet Years2
A1: Month in Cycle | B1: Lunar Year | C1: New Year Moment | D1: Elapsed | E1: Difference
A2: =StartMonth2 -> 2 | B2: 1 | C2: =(A2-1)*PPM -> 25101 | D2: =LOOKUP(A2,Data!A$21:A$10245,Data!G$21:G$10245) -> 25500 | E2: =C2-D2 -> -399
A3: =A2+25 -> 27 | B3: =B2+1 -> 2 | C3: 652626 | D3: =LOOKUP(A3,Data!A$21:A$10245,Data!G$21:G$10245) -> 652800 | E3: -174
A4: 52 | B4: 3 | C4: 1280151 | D4: =LOOKUP(A4,Data!A$21:A$10245,Data!G$21:G$10245) -> 1280100 | E4: 51
A5: 77 | B5: 4 | C5: 1907676 | D5: =LOOKUP(A5,Data!A$21:A$10245,Data!G$21:G$10245) -> 1907400 | E5: 276
A6: 102 | B6: 5 | C6: 2535201 | D6: =LOOKUP(A6,Data!A$21:A$10245,Data!G$21:G$10245) -> 2535550 | E6: -349
A7: 127 | B7: 6 | C7: 3162726 | D7: =LOOKUP(A7,Data!A$21:A$10245,Data!G$21:G$10245) -> 3162850 | E7: -124
A8: 152 | B8: 7 | C8: 3790251 | D8: =LOOKUP(A8,Data!A$21:A$10245,Data!G$21:G$10245) -> 3790150 | E8: 101
A9: 177 | B9: 8 | C9: 4417776 | D9: =LOOKUP(A9,Data!A$21:A$10245,Data!G$21:G$10245) -> 4417450 | E9: 326
A10: 202 | B10: 9 | C10: 5045301 | D10: =LOOKUP(A10,Data!A$21:A$10245,Data!G$21:G$10245) -> 5045600 | E10: -299
A11: 227 | B11: 10 | C11: 5672826 | D11: =LOOKUP(A11,Data!A$21:A$10245,Data!G$21:G$10245) -> 5672900 | E11: -74
A12: 252 | B12: 11 | C12: 6300351 | D12: =LOOKUP(A12,Data!A$21:A$10245,Data!G$21:G$10245) -> 6300200 | E12: 151
A13: 277 | B13: 12 | C13: 6927876 | D13: =LOOKUP(A13,Data!A$21:A$10245,Data!G$21:G$10245) -> 6927500 | E13: 376
A14: 302 | B14: 13 | C14: 7555401 | D14: =LOOKUP(A14,Data!A$21:A$10245,Data!G$21:G$10245) -> 7555650 | E14: -249
A15: 327 | B15: 14 | C15: 8182926 | D15: =LOOKUP(A15,Data!A$21:A$10245,Data!G$21:G$10245) -> 8182950 | E15: -24
A16: 352 | B16: 15 | C16: 8810451 | D16: =LOOKUP(A16,Data!A$21:A$10245,Data!G$21:G$10245) -> 8810250 | E16: 201
A17: 377 | B17: 16 | C17: 9437976 | D17: =LOOKUP(A17,Data!A$21:A$10245,Data!G$21:G$10245) -> 9437550 | E17: 426
A18: 402 | B18: 17 | C18: 10065501 | D18: =LOOKUP(A18,Data!A$21:A$10245,Data!G$21:G$10245) -> 10065700 | E18: -199
A19: 427 | B19: 18 | C19: 10693026 | D19: =LOOKUP(A19,Data!A$21:A$10245,Data!G$21:G$10245) -> 10693000 | E19: 26
A20: 452 | B20: 19 | C20: 11320551 | D20: =LOOKUP(A20,Data!A$21:A$10245,Data!G$21:G$10245) -> 11320300 | E20: 251
A21: 477 | B21: 20 | C21: 11948076 | D21: =LOOKUP(A21,Data!A$21:A$10245,Data!G$21:G$10245) -> 11947600 | E21: 476
A22: 502 | B22: 21 | C22: 12575601 | D22: =LOOKUP(A22,Data!A$21:A$10245,Data!G$21:G$10245) -> 12575750 | E22: -149
A23: 527 | B23: 22 | C23: 13203126 | D23: =LOOKUP(A23,Data!A$21:A$10245,Data!G$21:G$10245) -> 13203050 | E23: 76
A24: 552 | B24: 23 | C24: 13830651 | D24: =LOOKUP(A24,Data!A$21:A$10245,Data!G$21:G$10245) -> 13830350 | E24: 301
A25: 577 | B25: 24 | C25: 14458176 | D25: =LOOKUP(A25,Data!A$21:A$10245,Data!G$21:G$10245) -> 14457650 | E25: 526
A26: 602 | B26: 25 | C26: 15085701 | D26: =LOOKUP(A26,Data!A$21:A$10245,Data!G$21:G$10245) -> 15085800 | E26: -99
A27: 627 | B27: 26 | C27: 15713226 | D27: =LOOKUP(A27,Data!A$21:A$10245,Data!G$21:G$10245) -> 15713100 | E27: 126
A28: 652 | B28: 27 | C28: 16340751 | D28: =LOOKUP(A28,Data!A$21:A$10245,Data!G$21:G$10245) -> 16340400 | E28: 351
A29: 677 | B29: 28 | C29: 16968276 | D29: =LOOKUP(A29,Data!A$21:A$10245,Data!G$21:G$10245) -> 16967700 | E29: 576
A30: 702 | B30: 29 | C30: 17595801 | D30: =LOOKUP(A30,Data!A$21:A$10245,Data!G$21:G$10245) -> 17595850 | E30: -49
A31: 727 | B31: 30 | C31: 18223326 | D31: =LOOKUP(A31,Data!A$21:A$10245,Data!G$21:G$10245) -> 18223150 | E31: 176
A32: 752 | B32: 31 | C32: 18850851 | D32: =LOOKUP(A32,Data!A$21:A$10245,Data!G$21:G$10245) -> 18850450 | E32: 401
A33: 777 | B33: 32 | C33: 19478376 | D33: =LOOKUP(A33,Data!A$21:A$10245,Data!G$21:G$10245) -> 19477750 | E33: 626
A34: 802 | B34: 33 | C34: 20105901 | D34: =LOOKUP(A34,Data!A$21:A$10245,Data!G$21:G$10245) -> 20105900 | E34: 1
A35: 827 | B35: 34 | C35: 20733426 | D35: =LOOKUP(A35,Data!A$21:A$10245,Data!G$21:G$10245) -> 20733200 | E35: 226
A36: 852 | B36: 35 | C36: 21360951 | D36: =LOOKUP(A36,Data!A$21:A$10245,Data!G$21:G$10245) -> 21360500 | E36: 451
A37: 877 | B37: 36 | C37: 21988476 | D37: =LOOKUP(A37,Data!A$21:A$10245,Data!G$21:G$10245) -> 21987800 | E37: 676
A38: 902 | B38: 37 | C38: 22616001 | D38: =LOOKUP(A38,Data!A$21:A$10245,Data!G$21:G$10245) -> 22615950 | E38: 51
A39: 927 | B39: 38 | C39: 23243526 | D39: =LOOKUP(A39,Data!A$21:A$10245,Data!G$21:G$10245) -> 23243250 | E39: 276
A40: 952 | B40: 39 | C40: 23871051 | D40: =LOOKUP(A40,Data!A$21:A$10245,Data!G$21:G$10245) -> 23870550 | E40: 501
A41: 977 | B41: 40 | C41: 24498576 | D41: =LOOKUP(A41,Data!A$21:A$10245,Data!G$21:G$10245) -> 24497850 | E41: 726
A42: 1002 | B42: 41 | C42: 25126101 | D42: =LOOKUP(A42,Data!A$21:A$10245,Data!G$21:G$10245) -> 25126000 | E42: 101
A43: 1027 | B43: 42 | C43: 25753626 | D43: =LOOKUP(A43,Data!A$21:A$10245,Data!G$21:G$10245) -> 25753300 | E43: 326
A44: 1052 | B44: 43 | C44: 26381151 | D44: =LOOKUP(A44,Data!A$21:A$10245,Data!G$21:G$10245) -> 26380600 | E44: 551
A45: 1077 | B45: 44 | C45: 27008676 | D45: =LOOKUP(A45,Data!A$21:A$10245,Data!G$21:G$10245) -> 27007900 | E45: 776
A46: 1102 | B46: 45 | C46: 27636201 | D46: =LOOKUP(A46,Data!A$21:A$10245,Data!G$21:G$10245) -> 27636050 | E46: 151
A47: 1127 | B47: 46 | C47: 28263726 | D47: =LOOKUP(A47,Data!A$21:A$10245,Data!G$21:G$10245) -> 28263350 | E47: 376
A48: 1152 | B48: 47 | C48: 28891251 | D48: =LOOKUP(A48,Data!A$21:A$10245,Data!G$21:G$10245) -> 28890650 | E48: 601
A49: 1177 | B49: 48 | C49: 29518776 | D49: =LOOKUP(A49,Data!A$21:A$10245,Data!G$21:G$10245) -> 29517950 | E49: 826
A50: 1202 | B50: 49 | C50: 30146301 | D50: =LOOKUP(A50,Data!A$21:A$10245,Data!G$21:G$10245) -> 30146100 | E50: 201
A51: 1227 | B51: 50 | C51: 30773826 | D51: =LOOKUP(A51,Data!A$21:A$10245,Data!G$21:G$10245) -> 30773400 | E51: 426
A52: 1252 | B52: 51 | C52: 31401351 | D52: =LOOKUP(A52,Data!A$21:A$10245,Data!G$21:G$10245) -> 31400700 | E52: 651
A53: 1277 | B53: 52 | C53: 32028876 | D53: =LOOKUP(A53,Data!A$21:A$10245,Data!G$21:G$10245) -> 32028850 | E53: 26
A54: 1302 | B54: 53 | C54: 32656401 | D54: =LOOKUP(A54,Data!A$21:A$10245,Data!G$21:G$10245) -> 32657000 | E54: -599
A55: 1327 | B55: 54 | C55: 33283926 | D55: =LOOKUP(A55,Data!A$21:A$10245,Data!G$21:G$10245) -> 33284300 | E55: -374
A56: 1352 | B56: 55 | C56: 33911451 | D56: =LOOKUP(A56,Data!A$21:A$10245,Data!G$21:G$10245) -> 33911600 | E56: -149
A57: 1377 | B57: 56 | C57: 34538976 | D57: =LOOKUP(A57,Data!A$21:A$10245,Data!G$21:G$10245) -> 34538900 | E57: 76
A58: 1402 | B58: 57 | C58: 35166501 | D58: =LOOKUP(A58,Data!A$21:A$10245,Data!G$21:G$10245) -> 35167050 | E58: -549
A59: 1427 | B59: 58 | C59: 35794026 | D59: =LOOKUP(A59,Data!A$21:A$10245,Data!G$21:G$10245) -> 35794350 | E59: -324
A60: 1452 | B60: 59 | C60: 36421551 | D60: =LOOKUP(A60,Data!A$21:A$10245,Data!G$21:G$10245) -> 36421650 | E60: -99
A61: 1477 | B61: 60 | C61: 37049076 | D61: =LOOKUP(A61,Data!A$21:A$10245,Data!G$21:G$10245) -> 37048950 | E61: 126
A62: 1502 | B62: 61 | C62: 37676601 | D62: =LOOKUP(A62,Data!A$21:A$10245,Data!G$21:G$10245) -> 37677100 | E62: -499
A63: 1527 | B63: 62 | C63: 38304126 | D63: =LOOKUP(A63,Data!A$21:A$10245,Data!G$21:G$10245) -> 38304400 | E63: -274
A64: 1552 | B64: 63 | C64: 38931651 | D64: =LOOKUP(A64,Data!A$21:A$10245,Data!G$21:G$10245) -> 38931700 | E64: -49
A65: 1577 | B65: 64 | C65: 39559176 | D65: =LOOKUP(A65,Data!A$21:A$10245,Data!G$21:G$10245) -> 39559000 | E65: 176
A66: 1602 | B66: 65 | C66: =(A66-1)*PPM -> 40186701 | D66: =LOOKUP(A66,Data!A$21:A$10245,Data!G$21:G$10245) -> 40187150 | E66: =C66-D66 -> -449
A67: =A66+25 -> 1627 | B67: =B66+1 -> 66 | C67: 40814226 | D67: =LOOKUP(A67,Data!A$21:A$10245,Data!G$21:G$10245) -> 40814450 | E67: -224
A68: 1652 | B68: 67 | C68: 41441751 | D68: =LOOKUP(A68,Data!A$21:A$10245,Data!G$21:G$10245) -> 41441750 | E68: 1
A69: 1677 | B69: 68 | C69: 42069276 | D69: =LOOKUP(A69,Data!A$21:A$10245,Data!G$21:G$10245) -> 42069050 | E69: 226
A70: 1702 | B70: 69 | C70: 42696801 | D70: =LOOKUP(A70,Data!A$21:A$10245,Data!G$21:G$10245) -> 42697200 | E70: -399
A71: 1727 | B71: 70 | C71: 43324326 | D71: =LOOKUP(A71,Data!A$21:A$10245,Data!G$21:G$10245) -> 43324500 | E71: -174
A72: 1752 | B72: 71 | C72: 43951851 | D72: =LOOKUP(A72,Data!A$21:A$10245,Data!G$21:G$10245) -> 43951800 | E72: 51
A73: 1777 | B73: 72 | C73: 44579376 | D73: =LOOKUP(A73,Data!A$21:A$10245,Data!G$21:G$10245) -> 44579100 | E73: 276
A74: 1802 | B74: 73 | C74: 45206901 | D74: =LOOKUP(A74,Data!A$21:A$10245,Data!G$21:G$10245) -> 45207250 | E74: -349
A75: 1827 | B75: 74 | C75: 45834426 | D75: =LOOKUP(A75,Data!A$21:A$10245,Data!G$21:G$10245) -> 45834550 | E75: -124
A76: 1852 | B76: 75 | C76: 46461951 | D76: =LOOKUP(A76,Data!A$21:A$10245,Data!G$21:G$10245) -> 46461850 | E76: 101
A77: 1877 | B77: 76 | C77: 47089476 | D77: =LOOKUP(A77,Data!A$21:A$10245,Data!G$21:G$10245) -> 47089150 | E77: 326
A78: 1902 | B78: 77 | C78: 47717001 | D78: =LOOKUP(A78,Data!A$21:A$10245,Data!G$21:G$10245) -> 47717300 | E78: -299
A79: 1927 | B79: 78 | C79: 48344526 | D79: =LOOKUP(A79,Data!A$21:A$10245,Data!G$21:G$10245) -> 48344600 | E79: -74
A80: 1952 | B80: 79 | C80: 48972051 | D80: =LOOKUP(A80,Data!A$21:A$10245,Data!G$21:G$10245) -> 48971900 | E80: 151
A81: 1977 | B81: 80 | C81: 49599576 | D81: =LOOKUP(A81,Data!A$21:A$10245,Data!G$21:G$10245) -> 49599200 | E81: 376
A82: 2002 | B82: 81 | C82: 50227101 | D82: =LOOKUP(A82,Data!A$21:A$10245,Data!G$21:G$10245) -> 50227350 | E82: -249
A83: 2027 | B83: 82 | C83: 50854626 | D83: =LOOKUP(A83,Data!A$21:A$10245,Data!G$21:G$10245) -> 50854650 | E83: -24
A84: 2052 | B84: 83 | C84: 51482151 | D84: =LOOKUP(A84,Data!A$21:A$10245,Data!G$21:G$10245) -> 51481950 | E84: 201
A85: 2077 | B85: 84 | C85: 52109676 | D85: =LOOKUP(A85,Data!A$21:A$10245,Data!G$21:G$10245) -> 52109250 | E85: 426
A86: 2102 | B86: 85 | C86: 52737201 | D86: =LOOKUP(A86,Data!A$21:A$10245,Data!G$21:G$10245) -> 52737400 | E86: -199
A87: 2127 | B87: 86 | C87: 53364726 | D87: =LOOKUP(A87,Data!A$21:A$10245,Data!G$21:G$10245) -> 53364700 | E87: 26
A88: 2152 | B88: 87 | C88: 53992251 | D88: =LOOKUP(A88,Data!A$21:A$10245,Data!G$21:G$10245) -> 53992000 | E88: 251
A89: 2177 | B89: 88 | C89: 54619776 | D89: =LOOKUP(A89,Data!A$21:A$10245,Data!G$21:G$10245) -> 54619300 | E89: 476
A90: 2202 | B90: 89 | C90: 55247301 | D90: =LOOKUP(A90,Data!A$21:A$10245,Data!G$21:G$10245) -> 55247450 | E90: -149
A91: 2227 | B91: 90 | C91: 55874826 | D91: =LOOKUP(A91,Data!A$21:A$10245,Data!G$21:G$10245) -> 55874750 | E91: 76
A92: 2252 | B92: 91 | C92: 56502351 | D92: =LOOKUP(A92,Data!A$21:A$10245,Data!G$21:G$10245) -> 56502050 | E92: 301
A93: 2277 | B93: 92 | C93: 57129876 | D93: =LOOKUP(A93,Data!A$21:A$10245,Data!G$21:G$10245) -> 57129350 | E93: 526
A94: 2302 | B94: 93 | C94: 57757401 | D94: =LOOKUP(A94,Data!A$21:A$10245,Data!G$21:G$10245) -> 57757500 | E94: -99
A95: 2327 | B95: 94 | C95: 58384926 | D95: =LOOKUP(A95,Data!A$21:A$10245,Data!G$21:G$10245) -> 58384800 | E95: 126
A96: 2352 | B96: 95 | C96: 59012451 | D96: =LOOKUP(A96,Data!A$21:A$10245,Data!G$21:G$10245) -> 59012100 | E96: 351
A97: 2377 | B97: 96 | C97: 59639976 | D97: =LOOKUP(A97,Data!A$21:A$10245,Data!G$21:G$10245) -> 59639400 | E97: 576
A98: 2402 | B98: 97 | C98: 60267501 | D98: =LOOKUP(A98,Data!A$21:A$10245,Data!G$21:G$10245) -> 60267550 | E98: -49
A99: 2427 | B99: 98 | C99: 60895026 | D99: =LOOKUP(A99,Data!A$21:A$10245,Data!G$21:G$10245) -> 60894850 | E99: 176
A100: 2452 | B100: 99 | C100: 61522551 | D100: =LOOKUP(A100,Data!A$21:A$10245,Data!G$21:G$10245) -> 61522150 | E100: 401
A101: 2477 | B101: 100 | C101: 62150076 | D101: =LOOKUP(A101,Data!A$21:A$10245,Data!G$21:G$10245) -> 62149450 | E101: 626
A102: 2502 | B102: 101 | C102: 62777601 | D102: =LOOKUP(A102,Data!A$21:A$10245,Data!G$21:G$10245) -> 62777600 | E102: 1
A103: 2527 | B103: 102 | C103: 63405126 | D103: =LOOKUP(A103,Data!A$21:A$10245,Data!G$21:G$10245) -> 63404900 | E103: 226
A104: 2552 | B104: 103 | C104: 64032651 | D104: =LOOKUP(A104,Data!A$21:A$10245,Data!G$21:G$10245) -> 64033050 | E104: -399
A105: 2577 | B105: 104 | C105: 64660176 | D105: =LOOKUP(A105,Data!A$21:A$10245,Data!G$21:G$10245) -> 64660350 | E105: -174
A106: 2602 | B106: 105 | C106: 65287701 | D106: =LOOKUP(A106,Data!A$21:A$10245,Data!G$21:G$10245) -> 65288500 | E106: -799
A107: 2627 | B107: 106 | C107: 65915226 | D107: =LOOKUP(A107,Data!A$21:A$10245,Data!G$21:G$10245) -> 65915800 | E107: -574
A108: 2652 | B108: 107 | C108: 66542751 | D108: =LOOKUP(A108,Data!A$21:A$10245,Data!G$21:G$10245) -> 66543100 | E108: -349
A109: 2677 | B109: 108 | C109: 67170276 | D109: =LOOKUP(A109,Data!A$21:A$10245,Data!G$21:G$10245) -> 67170400 | E109: -124
A110: 2702 | B110: 109 | C110: 67797801 | D110: =LOOKUP(A110,Data!A$21:A$10245,Data!G$21:G$10245) -> 67798550 | E110: -749
A111: 2727 | B111: 110 | C111: 68425326 | D111: =LOOKUP(A111,Data!A$21:A$10245,Data!G$21:G$10245) -> 68425850 | E111: -524
A112: 2752 | B112: 111 | C112: 69052851 | D112: =LOOKUP(A112,Data!A$21:A$10245,Data!G$21:G$10245) -> 69053150 | E112: -299
A113: 2777 | B113: 112 | C113: 69680376 | D113: =LOOKUP(A113,Data!A$21:A$10245,Data!G$21:G$10245) -> 69680450 | E113: -74
A114: 2802 | B114: 113 | C114: 70307901 | D114: =LOOKUP(A114,Data!A$21:A$10245,Data!G$21:G$10245) -> 70308600 | E114: -699
A115: 2827 | B115: 114 | C115: 70935426 | D115: =LOOKUP(A115,Data!A$21:A$10245,Data!G$21:G$10245) -> 70935900 | E115: -474
A116: 2852 | B116: 115 | C116: 71562951 | D116: =LOOKUP(A116,Data!A$21:A$10245,Data!G$21:G$10245) -> 71563200 | E116: -249
A117: 2877 | B117: 116 | C117: 72190476 | D117: =LOOKUP(A117,Data!A$21:A$10245,Data!G$21:G$10245) -> 72190500 | E117: -24
A118: 2902 | B118: 117 | C118: 72818001 | D118: =LOOKUP(A118,Data!A$21:A$10245,Data!G$21:G$10245) -> 72818650 | E118: -649
A119: 2927 | B119: 118 | C119: 73445526 | D119: =LOOKUP(A119,Data!A$21:A$10245,Data!G$21:G$10245) -> 73445950 | E119: -424
A120: 2952 | B120: 119 | C120: 74073051 | D120: =LOOKUP(A120,Data!A$21:A$10245,Data!G$21:G$10245) -> 74073250 | E120: -199
A121: 2977 | B121: 120 | C121: 74700576 | D121: =LOOKUP(A121,Data!A$21:A$10245,Data!G$21:G$10245) -> 74700550 | E121: 26
A122: 3002 | B122: 121 | C122: 75328101 | D122: =LOOKUP(A122,Data!A$21:A$10245,Data!G$21:G$10245) -> 75328700 | E122: -599
A123: 3027 | B123: 122 | C123: 75955626 | D123: =LOOKUP(A123,Data!A$21:A$10245,Data!G$21:G$10245) -> 75956000 | E123: -374
A124: 3052 | B124: 123 | C124: 76583151 | D124: =LOOKUP(A124,Data!A$21:A$10245,Data!G$21:G$10245) -> 76583300 | E124: -149
A125: 3077 | B125: 124 | C125: 77210676 | D125: =LOOKUP(A125,Data!A$21:A$10245,Data!G$21:G$10245) -> 77210600 | E125: 76
A126: 3102 | B126: 125 | C126: 77838201 | D126: =LOOKUP(A126,Data!A$21:A$10245,Data!G$21:G$10245) -> 77838750 | E126: -549
A127: 3127 | B127: 126 | C127: 78465726 | D127: =LOOKUP(A127,Data!A$21:A$10245,Data!G$21:G$10245) -> 78466050 | E127: -324
A128: 3152 | B128: 127 | C128: 79093251 | D128: =LOOKUP(A128,Data!A$21:A$10245,Data!G$21:G$10245) -> 79093350 | E128: -99
A129: 3177 | B129: 128 | C129: 79720776 | D129: =LOOKUP(A129,Data!A$21:A$10245,Data!G$21:G$10245) -> 79720650 | E129: 126
A130: 3202 | B130: 129 | C130: =(A130-1)*PPM -> 80348301 | D130: =LOOKUP(A130,Data!A$21:A$10245,Data!G$21:G$10245) -> 80348800 | E130: =C130-D130 -> -499
A131: =A130+25 -> 3227 | B131: =B130+1 -> 130 | C131: 80975826 | D131: =LOOKUP(A131,Data!A$21:A$10245,Data!G$21:G$10245) -> 80976100 | E131: -274
A132: 3252 | B132: 131 | C132: 81603351 | D132: =LOOKUP(A132,Data!A$21:A$10245,Data!G$21:G$10245) -> 81603400 | E132: -49
A133: 3277 | B133: 132 | C133: 82230876 | D133: =LOOKUP(A133,Data!A$21:A$10245,Data!G$21:G$10245) -> 82230700 | E133: 176
A134: 3302 | B134: 133 | C134: 82858401 | D134: =LOOKUP(A134,Data!A$21:A$10245,Data!G$21:G$10245) -> 82858850 | E134: -449
A135: 3327 | B135: 134 | C135: 83485926 | D135: =LOOKUP(A135,Data!A$21:A$10245,Data!G$21:G$10245) -> 83486150 | E135: -224
A136: 3352 | B136: 135 | C136: 84113451 | D136: =LOOKUP(A136,Data!A$21:A$10245,Data!G$21:G$10245) -> 84113450 | E136: 1
A137: 3377 | B137: 136 | C137: 84740976 | D137: =LOOKUP(A137,Data!A$21:A$10245,Data!G$21:G$10245) -> 84740750 | E137: 226
A138: 3402 | B138: 137 | C138: 85368501 | D138: =LOOKUP(A138,Data!A$21:A$10245,Data!G$21:G$10245) -> 85368900 | E138: -399
A139: 3427 | B139: 138 | C139: 85996026 | D139: =LOOKUP(A139,Data!A$21:A$10245,Data!G$21:G$10245) -> 85996200 | E139: -174
A140: 3452 | B140: 139 | C140: 86623551 | D140: =LOOKUP(A140,Data!A$21:A$10245,Data!G$21:G$10245) -> 86623500 | E140: 51
A141: 3477 | B141: 140 | C141: 87251076 | D141: =LOOKUP(A141,Data!A$21:A$10245,Data!G$21:G$10245) -> 87250800 | E141: 276
A142: 3502 | B142: 141 | C142: 87878601 | D142: =LOOKUP(A142,Data!A$21:A$10245,Data!G$21:G$10245) -> 87878950 | E142: -349
A143: 3527 | B143: 142 | C143: 88506126 | D143: =LOOKUP(A143,Data!A$21:A$10245,Data!G$21:G$10245) -> 88506250 | E143: -124
A144: 3552 | B144: 143 | C144: 89133651 | D144: =LOOKUP(A144,Data!A$21:A$10245,Data!G$21:G$10245) -> 89133550 | E144: 101
A145: 3577 | B145: 144 | C145: 89761176 | D145: =LOOKUP(A145,Data!A$21:A$10245,Data!G$21:G$10245) -> 89760850 | E145: 326
A146: 3602 | B146: 145 | C146: 90388701 | D146: =LOOKUP(A146,Data!A$21:A$10245,Data!G$21:G$10245) -> 90389000 | E146: -299
A147: 3627 | B147: 146 | C147: 91016226 | D147: =LOOKUP(A147,Data!A$21:A$10245,Data!G$21:G$10245) -> 91016300 | E147: -74
A148: 3652 | B148: 147 | C148: 91643751 | D148: =LOOKUP(A148,Data!A$21:A$10245,Data!G$21:G$10245) -> 91643600 | E148: 151
A149: 3677 | B149: 148 | C149: 92271276 | D149: =LOOKUP(A149,Data!A$21:A$10245,Data!G$21:G$10245) -> 92270900 | E149: 376
A150: 3702 | B150: 149 | C150: 92898801 | D150: =LOOKUP(A150,Data!A$21:A$10245,Data!G$21:G$10245) -> 92899050 | E150: -249
A151: 3727 | B151: 150 | C151: 93526326 | D151: =LOOKUP(A151,Data!A$21:A$10245,Data!G$21:G$10245) -> 93526350 | E151: -24
A152: 3752 | B152: 151 | C152: 94153851 | D152: =LOOKUP(A152,Data!A$21:A$10245,Data!G$21:G$10245) -> 94153650 | E152: 201
A153: 3777 | B153: 152 | C153: 94781376 | D153: =LOOKUP(A153,Data!A$21:A$10245,Data!G$21:G$10245) -> 94780950 | E153: 426
A154: 3802 | B154: 153 | C154: 95408901 | D154: =LOOKUP(A154,Data!A$21:A$10245,Data!G$21:G$10245) -> 95409100 | E154: -199
A155: 3827 | B155: 154 | C155: 96036426 | D155: =LOOKUP(A155,Data!A$21:A$10245,Data!G$21:G$10245) -> 96037250 | E155: -824
A156: 3852 | B156: 155 | C156: 96663951 | D156: =LOOKUP(A156,Data!A$21:A$10245,Data!G$21:G$10245) -> 96664550 | E156: -599
A157: 3877 | B157: 156 | C157: 97291476 | D157: =LOOKUP(A157,Data!A$21:A$10245,Data!G$21:G$10245) -> 97291850 | E157: -374
A158: 3902 | B158: 157 | C158: 97919001 | D158: =LOOKUP(A158,Data!A$21:A$10245,Data!G$21:G$10245) -> 97920000 | E158: -999
A159: 3927 | B159: 158 | C159: 98546526 | D159: =LOOKUP(A159,Data!A$21:A$10245,Data!G$21:G$10245) -> 98547300 | E159: -774
A160: 3952 | B160: 159 | C160: 99174051 | D160: =LOOKUP(A160,Data!A$21:A$10245,Data!G$21:G$10245) -> 99174600 | E160: -549
A161: 3977 | B161: 160 | C161: 99801576 | D161: =LOOKUP(A161,Data!A$21:A$10245,Data!G$21:G$10245) -> 99801900 | E161: -324
A162: 4002 | B162: 161 | C162: 100429101 | D162: =LOOKUP(A162,Data!A$21:A$10245,Data!G$21:G$10245) -> 100430050 | E162: -949
A163: 4027 | B163: 162 | C163: 101056626 | D163: =LOOKUP(A163,Data!A$21:A$10245,Data!G$21:G$10245) -> 101057350 | E163: -724
A164: 4052 | B164: 163 | C164: 101684151 | D164: =LOOKUP(A164,Data!A$21:A$10245,Data!G$21:G$10245) -> 101684650 | E164: -499
A165: 4077 | B165: 164 | C165: 102311676 | D165: =LOOKUP(A165,Data!A$21:A$10245,Data!G$21:G$10245) -> 102311950 | E165: -274
A166: 4102 | B166: 165 | C166: 102939201 | D166: =LOOKUP(A166,Data!A$21:A$10245,Data!G$21:G$10245) -> 102940100 | E166: -899
A167: 4127 | B167: 166 | C167: 103566726 | D167: =LOOKUP(A167,Data!A$21:A$10245,Data!G$21:G$10245) -> 103567400 | E167: -674
A168: 4152 | B168: 167 | C168: 104194251 | D168: =LOOKUP(A168,Data!A$21:A$10245,Data!G$21:G$10245) -> 104194700 | E168: -449
A169: 4177 | B169: 168 | C169: 104821776 | D169: =LOOKUP(A169,Data!A$21:A$10245,Data!G$21:G$10245) -> 104822000 | E169: -224
A170: 4202 | B170: 169 | C170: 105449301 | D170: =LOOKUP(A170,Data!A$21:A$10245,Data!G$21:G$10245) -> 105450150 | E170: -849
A171: 4227 | B171: 170 | C171: 106076826 | D171: =LOOKUP(A171,Data!A$21:A$10245,Data!G$21:G$10245) -> 106077450 | E171: -624
A172: 4252 | B172: 171 | C172: 106704351 | D172: =LOOKUP(A172,Data!A$21:A$10245,Data!G$21:G$10245) -> 106704750 | E172: -399
A173: 4277 | B173: 172 | C173: 107331876 | D173: =LOOKUP(A173,Data!A$21:A$10245,Data!G$21:G$10245) -> 107332050 | E173: -174
A174: 4302 | B174: 173 | C174: 107959401 | D174: =LOOKUP(A174,Data!A$21:A$10245,Data!G$21:G$10245) -> 107960200 | E174: -799
A175: 4327 | B175: 174 | C175: 108586926 | D175: =LOOKUP(A175,Data!A$21:A$10245,Data!G$21:G$10245) -> 108587500 | E175: -574
A176: 4352 | B176: 175 | C176: 109214451 | D176: =LOOKUP(A176,Data!A$21:A$10245,Data!G$21:G$10245) -> 109214800 | E176: -349
A177: 4377 | B177: 176 | C177: 109841976 | D177: =LOOKUP(A177,Data!A$21:A$10245,Data!G$21:G$10245) -> 109842100 | E177: -124
A178: 4402 | B178: 177 | C178: 110469501 | D178: =LOOKUP(A178,Data!A$21:A$10245,Data!G$21:G$10245) -> 110470250 | E178: -749
A179: 4427 | B179: 178 | C179: 111097026 | D179: =LOOKUP(A179,Data!A$21:A$10245,Data!G$21:G$10245) -> 111097550 | E179: -524
A180: 4452 | B180: 179 | C180: 111724551 | D180: =LOOKUP(A180,Data!A$21:A$10245,Data!G$21:G$10245) -> 111724850 | E180: -299
A181: 4477 | B181: 180 | C181: 112352076 | D181: =LOOKUP(A181,Data!A$21:A$10245,Data!G$21:G$10245) -> 112352150 | E181: -74
A182: 4502 | B182: 181 | C182: 112979601 | D182: =LOOKUP(A182,Data!A$21:A$10245,Data!G$21:G$10245) -> 112980300 | E182: -699
A183: 4527 | B183: 182 | C183: 113607126 | D183: =LOOKUP(A183,Data!A$21:A$10245,Data!G$21:G$10245) -> 113607600 | E183: -474
A184: 4552 | B184: 183 | C184: 114234651 | D184: =LOOKUP(A184,Data!A$21:A$10245,Data!G$21:G$10245) -> 114234900 | E184: -249
A185: 4577 | B185: 184 | C185: 114862176 | D185: =LOOKUP(A185,Data!A$21:A$10245,Data!G$21:G$10245) -> 114862200 | E185: -24
A186: 4602 | B186: 185 | C186: 115489701 | D186: =LOOKUP(A186,Data!A$21:A$10245,Data!G$21:G$10245) -> 115490350 | E186: -649
A187: 4627 | B187: 186 | C187: 116117226 | D187: =LOOKUP(A187,Data!A$21:A$10245,Data!G$21:G$10245) -> 116117650 | E187: -424
A188: 4652 | B188: 187 | C188: 116744751 | D188: =LOOKUP(A188,Data!A$21:A$10245,Data!G$21:G$10245) -> 116744950 | E188: -199
A189: 4677 | B189: 188 | C189: 117372276 | D189: =LOOKUP(A189,Data!A$21:A$10245,Data!G$21:G$10245) -> 117372250 | E189: 26
A190: 4702 | B190: 189 | C190: 117999801 | D190: =LOOKUP(A190,Data!A$21:A$10245,Data!G$21:G$10245) -> 118000400 | E190: -599
A191: 4727 | B191: 190 | C191: 118627326 | D191: =LOOKUP(A191,Data!A$21:A$10245,Data!G$21:G$10245) -> 118627700 | E191: -374
A192: 4752 | B192: 191 | C192: 119254851 | D192: =LOOKUP(A192,Data!A$21:A$10245,Data!G$21:G$10245) -> 119255000 | E192: -149
A193: 4777 | B193: 192 | C193: 119882376 | D193: =LOOKUP(A193,Data!A$21:A$10245,Data!G$21:G$10245) -> 119882300 | E193: 76
A194: 4802 | B194: 193 | C194: =(A194-1)*PPM -> 120509901 | D194: =LOOKUP(A194,Data!A$21:A$10245,Data!G$21:G$10245) -> 120510450 | E194: =C194-D194 -> -549
A195: =A194+25 -> 4827 | B195: =B194+1 -> 194 | C195: 121137426 | D195: =LOOKUP(A195,Data!A$21:A$10245,Data!G$21:G$10245) -> 121137750 | E195: -324
A196: 4852 | B196: 195 | C196: 121764951 | D196: =LOOKUP(A196,Data!A$21:A$10245,Data!G$21:G$10245) -> 121765050 | E196: -99
A197: 4877 | B197: 196 | C197: 122392476 | D197: =LOOKUP(A197,Data!A$21:A$10245,Data!G$21:G$10245) -> 122392350 | E197: 126
A198: 4902 | B198: 197 | C198: 123020001 | D198: =LOOKUP(A198,Data!A$21:A$10245,Data!G$21:G$10245) -> 123020500 | E198: -499
A199: 4927 | B199: 198 | C199: 123647526 | D199: =LOOKUP(A199,Data!A$21:A$10245,Data!G$21:G$10245) -> 123647800 | E199: -274
A200: 4952 | B200: 199 | C200: 124275051 | D200: =LOOKUP(A200,Data!A$21:A$10245,Data!G$21:G$10245) -> 124275100 | E200: -49
... 210 more rows

Sheet Zoom
A1: 0 | B1: = Current Zoom Level
A2: Level | B2: Months | C2: MajorTick | D2: MinorTick | E2: Shift | F2: Connect | G2: Years | H2: YearsMajor | I2: YearsMinor
A3: =ROW()-3 -> 0 | B3: =12*MPC -> 10200 | C3: 1000 | D3: 200 | F3: FALSE | G3: =B3/25 -> 408 | H3: 20 | I3: 5
A4: 1 | B4: =6*MPC -> 5100 | C4: 500 | D4: 100 | E4: =B5 -> 2500 | F4: FALSE | G4: =B4/25 -> 204 | H4: 10 | I4: 2
A5: 2 | B5: 2500 | C5: 200 | D5: 50 | E5: 1250 | F5: FALSE | G5: =B5/25 -> 100 | H5: 5 | I5: 1
A6: 3 | B6: =B5/2 -> 1250 | C6: 50 | D6: 10 | E6: 625 | F6: FALSE | G6: 50 | H6: 2 | I6: 1
A7: 4 | B7: =B6/2 -> 625 | C7: 25 | D7: 5 | E7: 300 | F7: FALSE | G7: 25 | H7: 1 | I7: 1
A8: 5 | B8: 300 | C8: 25 | D8: 5 | E8: 150 | F8: FALSE | G8: 12 | H8: 1 | I8: 1
A9: 6 | B9: 150 | C9: 10 | D9: 2 | E9: 75 | F9: TRUE | G9: 6 | H9: 1 | I9: 1
A10: 7 | B10: 75 | C10: =B10/5 -> 15 | D10: 3 | E10: =B11 -> 25 | F10: TRUE | G10: 3 | H10: 1 | I10: 1
A11: 8 | B11: =B10/3 -> 25 | C11: =C10/3 -> 5 | D11: =D10/3 -> 1 | E11: 25 | F11: TRUE | G11: 1 | H11: 1 | I11: 1

Sheet Labels
A1: Lunar Year | B1: Hours | C1: ="Span "&B2-B28&"h" -> Span 78h
A2: 409 | B2: 30
A3: =A2 -> 409 | B3: =B2-3 -> 27
A4: =A3 -> 409 | B4: =B3-3 -> 24
A5: =A4 -> 409 | B5: 21
A6: =A5 -> 409 | B6: 18
A7: 409 | B7: 15
A8: 409 | B8: 12
A9: 409 | B9: 9
A10: 409 | B10: 6
A11: 409 | B11: 3
A12: 409 | B12: 0
A13: 409 | B13: -3
A14: 409 | B14: -6
A15: 409 | B15: -9
A16: =A15 -> 409 | B16: =B15-3 -> -12
A17: 409 | B17: -15
A18: 409 | B18: -18
A19: 409 | B19: -21
A20: 409 | B20: -24
A21: 409 | B21: -27
A22: 409 | B22: -30
A23: 409 | B23: -33
A24: =A23 -> 409 | B24: =B23-3 -> -36
A25: =A24 -> 409 | B25: =B24-3 -> -39
A26: =A25 -> 409 | B26: =B25-3 -> -42
A27: =A26 -> 409 | B27: =B26-3 -> -45
A28: =A27 -> 409 | B28: =B27-3 -> -48
